Workbook

Sheet Dati Gen
B1: https://www.madosoft.it/prodotti/superbonus110/pratica-110-xlsm | AA1: 0
A2: 0 | I2: Pratica.110 | J2: Versione | K2: 1.9 | O2: Titolare Licenza d'uso
B3: PRATICA SUPERBONUS 110% | D3: N. | E3: 1 | I3: ©2021 SIM srl - www.madosoft.it | O3: Cognome
B4: Tipologia | O4: Nome
B5: Condominio | E5: 3 | O5: Codice Fiscale
B6: =IF('Dati Gen'!B5="Edificio Unifamiliare", IF('Dati Gen'!E5>1,"Inserire N.Unità Immobiliari =1",""),IF('Dati Gen'!E5<=1,"Inserire N.Unità Immobiliari >1","")) ->  | O6: P.Iva
B7: Dati Edificio | O7: Indirizzo
B8: Comune di Ubicazione | J8: CAP | O8: CAP
B9: Indirizzo | J9: N. | O9: Città
B10: Dati Catastali | C10: Foglio | F10: Particella | H10: Sub. | J10: CAT. | O10: Provincia
B11: Anno di Costruzione Immobile | F11: Superficie Totale Disperdente : | O11: Telefono
B12: Autorizzazione Edilizia | C12: Licenza Edilizia / Titolo Edilizio | H12: =IF(C12="Licenza Edilizia / Titolo Edilizio","N.",IF(C12="Concessione in Sanatoria","N.","")) -> N. | J12: =IF(C12="Licenza Edilizia / Titolo Edilizio","Data",IF(C12="Concessione in Sanatoria","Data","")) -> Data | O12: Mail
O13: Codice Univoco
B14: Dati Committenti | O14: Mail PEC
B15: Cognome Nome
B16: Codice Fiscale | O16: Controlla Aggiornamenti
B17: Comune di Nascita | H17: Data Nascita | O17: Licenza N. | P17: Versione DEMO | Q17: =IF(MID(P17,1,2)<>"AP","Acquista Licenza x 100 Attivazioni","") -> Acquista Licenza x 100 Attivazioni
B18: Comune di Residenza | J18: CAP
B19: Indirizzo | J19: N.
B20: Telefono | G20: Email
B22: Cognome Nome
B23: Codice Fiscale
B24: Comune di Nascita | H24: Data Nascita
B25: Comune di Residenza | J25: CAP
B26: Indirizzo | J26: N.
B27: Telefono | G27: Email
B28: =IF(C22<>"",CONCATENATE(C15, " - ",C22),C15) -> 0
B29: =IF(K9<>"",CONCATENATE(C9,", ",K9),C9) -> 0
B31: Data Inizio Lavori | F31: Superficie lorda complessiva disperdente
B33: Relazione ex Legge 10/91 Depositata al Comune in Data | I33: Prot. N.

Sheet Computo-Massimali
S2: PARCELLA | U2: imponibile | W2: c.cassa | Z2: iva | AC2: totale
C3: Verifica Massimali Superbonus | F3: ='Dati Gen'!B28 -> 0 | O3: ='Dati Gen'!I3 -> ©2021 SIM srl - www.madosoft.it | S3: Ape Ante | U3: 800.95 | W3: 0.04 | X3: =U3*W3 -> 32.038 | Z3: 0.22 | AA3: =(U3+X3)*Z3 -> 183.25736 | AC3: =ROUND(U3+X3+AA3,2) -> 1016.25
C4: ='Dati Gen'!B5 -> Condominio | D4: =IF('Dati Gen'!E5>1,'Dati Gen'!E5,"") -> 3 | F4: ='Dati Gen'!B29 -> 0 | O4: ='Dati Gen'!I2 -> Pratica.110 | S4: Progettazione e DL | U4: 20725.26 | W4: 0.04 | X4: 829.0104 | Z4: 0.22 | AA4: =(U4+X4)*Z4 -> 4741.939488 | AC4: =ROUND(U4+X4+AA4,2) -> 26296.21
S5: Coord.SicurezzaEsec. | U5: 4000 | W5: 0.04 | X5: 160 | Z5: 0.22 | AA5: 915.2 | AC5: =ROUND(U5+X5+AA5,2) -> 5075.2
F6: Imponibile | G6: %iva | H6: IVA | I6: Importo | S6: Ape Post | U6: 1028.45 | W6: 0.04 | X6: 41.138 | Z6: 0.22 | AA6: 235.30936 | AC6: =ROUND(U6+X6+AA6,2) -> 1304.9
C7: Importo complessivo Lavori | F7: 483318 | G7: 0.1 | H7: =F7*G7 -> 48331.8 | I7: =F7+H7 -> 531649.8 | J7: =IF(ABS(H40-F7)>0.01,"Importo Lavori non corretto - completare Tabella 2","V.") -> V. | W7: 0.04 | X7: 0 | Z7: 0 | AA7: 0 | AC7: =ROUND(U7+X7+AA7,2) -> 0
C8: di cui Oneri/Lavori x Sicurezza | E8: 0.0614 | F8: =E8*F7 -> 29675.7252 | G8: =G7 -> 0.1 | H8: =F8*G8 -> 2967.57252 | I8: =F8+H8 -> 32643.29772 | J8: =IF(ABS(G40-F8)>0.01,"Importo Sicurezza non corretto - completare Tabella 2 oppure Click su Proporzionale","V.") -> V. | W8: 0.04 | X8: 0 | Z8: 0 | AA8: 0 | AC8: 0
C9: Importo Lavori al netto della Sicurezza | F9: =F7-F8 -> 453642.2748 | G9: =G7 -> 0.1 | H9: =F9*G9 -> 45364.22748 | I9: =F9+H9 -> 499006.5023 | J9: =IF(ABS(F40-F9)>0.01,"Importo b.a. non corretto - completare Tabella 2","V.") -> V. | W9: 0.04 | X9: =U9*W9 -> 0 | Z9: 0 | AA9: =(U9+X9)*Z9 -> 0 | AC9: =ROUND(U9+X9+AA9,2) -> 0
C10: Spese tecniche (compresa iva) | F10: =AC13 -> 39824.9 | I10: =AC13 -> 39824.9 | J10: =IF(ABS(I10-K40)>0.01,"Importo Spese Tecniche non corretto - completare Tabella 2 oppure Click su Proporzionale","V.") -> V. | V10: =SUM(U3:V9) -> 26554.66 | X10: =SUM(X3:Y9) -> 1062.1864 | AA10: =SUM(AA3:AB9) -> 6075.706208 | AC10: =SUM(AC3:AC9) -> 33692.56 | AE10: Ripartire ad Interventi 110 ed Interventi Ristrutturazione
I11: =I7+I10 -> 571474.7 | J11: =IF(ABS(L40-I11)<=0.01,"V.","Importo Lavori non corretto - Correggere Imponibili Tabella 1 oppure Completare Tabella 2") -> V. | U11: imponibile | W11: c.cassa | Z11: iva | AC11: totale
S12: Visto Conformità | U12: 0.01 | V12: =U12*H34 -> 4833.179949 | W12: 0.04 | X12: =V12*W12 -> 193.327198 | Z12: 0.22 | AA12: =(V12+X12)*Z12 -> 1105.831572 | AC12: =ROUND(V12+X12+AA12,2) -> 6132.34 | AE12: Ripartire solo ad Interventi 110
U13: =V10+V12 -> 31387.83995 | X13: =X10+X12 -> 1255.513598 | AA13: =AA10+AA12 -> 7181.53778 | AC13: =AC10+AC12 -> 39824.9
AE14: Se Dichiarazione Fornitore
C15: Lavorazione | F15: Importo Lavori | G15: Incidenza Sicurezza | H15: Imponibile | I15: Iva | J15: Importo c.iva | K15: Spese tecniche | L15: Totale | M15: Sup. Interv. | N15: Costo Unitario | O15: Detrazione Spettante | S15: Massimale spesa | T15: Verifica Max | V15: Quota Eccedente Massimali Spesa | X15: Cessione Credito | AE15: Massimale costo | AF15: Verifica Costo Un.
C16: Isolamento pareti perimetrali | E16: Esterno | F16: 0 | G16: 0 | H16: =SUM(F16:G16) -> 0 | I16: =F16*$G$9+G16*$G$8 -> 0 | J16: =H16+I16 -> 0 | K16: 0 | L16: =SUM(J16:K16) -> 0 | M16: 50 | N16: =IF(ISNUMBER(M16)=TRUE,F16/M16,0) -> 0 | O16: =IF(L16<=S16,L16*1.1,S16*1.1) -> 0 | S16: =IF(TipoEdif="Edificio Unifamiliare",50000,IF(N_Uimm>8,40000*8+30000*(N_Uimm-8),40000*N_Uimm)) -> 120000 | T16: =IF(L16>O16,"KO Tot.>Detr.",IF(L16>S16,"ok< Tot.>Max.","ok")) -> ok | X16: Quota Impresa | Z16: Quota Tecnico | AE16: =IF(Q16="Parete Ventilata",200,IF(Q16="Interno",80,150)) -> 150 | AF16: =IF(AE16<>0,IF(N16>AE16,"KO","ok"),"ok") -> ok
C17: Isolamento coperture | E17: Esterno | F17: 0 | G17: 0 | H17: =SUM(F17:G17) -> 0 | I17: =F17*$G$9+G17*$G$8 -> 0 | J17: =H17+I17 -> 0 | K17: 0 | L17: =SUM(J17:K17) -> 0 | N17: =IF(ISNUMBER(M17)=TRUE,F17/M17,0) -> 0 | O17: 0 | S17: =IF(TipoEdif="Edificio Unifamiliare",50000,IF(N_Uimm>8,40000*8+30000*(N_Uimm-8),40000*N_Uimm)) -> 120000 | T17: ok | AE17: =IF(Q17="Copertura Ventilata",250,IF(Q17="Interno",100,230)) -> 230 | AF17: =IF(AE17<>0,IF(N17>AE17,"KO","ok"),"ok") -> ok
C18: Isolamento Pavimenti | E18: Esterno | G18: 0 | H18: 0 | I18: 0 | J18: =H18+I18 -> 0 | K18: 0 | L18: =SUM(J18:K18) -> 0 | N18: 0 | O18: 0 | S18: =IF(TipoEdif="Edificio Unifamiliare",50000,IF(N_Uimm>8,40000*8+30000*(N_Uimm-8),40000*N_Uimm)) -> 120000 | T18: ok | AE18: =IF(Q18="Interno/terreno",150,120) -> 120 | AF18: ok
C19: Isolamento sup. verticali e/o orizzontali | F19: =SUM(F16:F18) -> 0 | G19: =SUM(G16:G18) -> 0 | H19: 0 | I19: 0 | J19: 0 | K19: 0 | L19: 0 | O19: 0 | S19: =IF(TipoEdif="Edificio Unifamiliare",50000,IF(N_Uimm>8,40000*8+30000*(N_Uimm-8),40000*N_Uimm)) -> 120000 | T19: ok | V19: =IF(L19>S19,L19-S19,0) -> 0 | X19: =IF(O19<>0,J19*O19/L19,0) -> 0 | Z19: =IF(O19<>0,K19*O19/L19,0) -> 0
C20: Serramenti | E20: Zone D, E ed F | G20: 0 | H20: 0 | I20: =F20*$G$9+G20*$G$8 -> 0 | J20: =H20+I20 -> 0 | K20: 0 | L20: =SUM(J20:K20) -> 0 | N20: 0 | O20: 0 | S20: =60000*N_Uimm/1.1 -> 163636.3636 | T20: ok | X20: 0 | Z20: 0 | AE20: =IF(Q20="Zone A, B e C",550,650) -> 650 | AF20: =IF(AE20<>0,IF(N20>AE20,"KO","ok"),"ok") -> ok
C21: Serramenti con chiusure oscuranti | E21: Zone D, E ed F | F21: 0 | G21: 0 | H21: 0 | I21: 0 | J21: 0 | K21: 0 | L21: =SUM(J21:K21) -> 0 | N21: 0 | O21: 0 | S21: =60000*N_Uimm/1.1 -> 163636.3636 | T21: ok | X21: 0 | Z21: 0 | AE21: =IF(Q21="Zone A, B e C",650,750) -> 750 | AF21: ok
C22: Serramenti + chiusure oscuranti | F22: =SUM(F20:F21) -> 0 | G22: 0 | H22: 0 | I22: 0 | J22: 0 | K22: 0 | L22: 0 | O22: 0 | S22: =60000*N_Uimm/1.1 -> 163636.3636 | T22: ok | V22: =IF(L22>S22,L22-S22,0) -> 0 | X22: =IF(O22<>0,J22*O22/L22,0) -> 0 | Z22: =IF(O22<>0,K22*O22/L22,0) -> 0
C23: Schermature solari | F23: 0 | G23: 0 | H23: =SUM(F23:G23) -> 0 | I23: 0 | J23: 0 | K23: 0 | L23: =SUM(J23:K23) -> 0 | N23: 0 | O23: 0 | S23: =60000*N_Uimm/1.1 -> 163636.3636 | T23: ok | V23: 0 | X23: 0 | Z23: 0 | AE23: 230 | AF23: =IF(AE23<>0,IF(N23>AE23,"KO","ok"),"ok") -> ok
C24: Solare Termico - con collettori solari | E24: Piani Vetrati | F24: 0 | G24: 0 | H24: 0 | I24: 0 | J24: 0 | K24: 0 | L24: 0 | N24: 0 | O24: 0 | S24: =IF(TipoEdif="Edificio Unifamiliare",30000,IF(N_Uimm>8,15000*N_Uimm,20000*N_Uimm)) -> 60000 | T24: ok | V24: 0 | X24: 0 | Z24: 0 | AE24: =IF(Q24="Scoperti",750,IF(Q24="Piani vetrati",1000,1250)) -> 1250 | AF24: ok
C25: Solare Fotovoltaico kWp | E25: 6 | F25: 0 | G25: 0 | H25: 0 | I25: 0 | J25: 0 | K25: 0 | L25: 0 | N25: 0 | O25: 0 | S25: =IF(C25="Solare Fotovoltaico kWp",IF(E25*2400<48000*N_Uimm,E25*2400,48000*N_Uimm),IF(E25*1600<48000*N_Uimm,E25*1600,48000*N_Uimm)) -> 14400 | T25: =IF(L25>O25,"KO Tot.>Detr.",IF(L25>S25,"ok< Tot.>Max.","ok")) -> ok | V25: 0 | X25: 0 | Z25: 0 | AE25: vedi All.I | AF25: ok
C26: Sistema di Accumulo kWh | E26: 10 | F26: 0 | G26: 0 | H26: 0 | I26: 0 | J26: 0 | K26: 0 | L26: 0 | N26: 0 | O26: 0 | S26: =IF(E26*1000<48000*N_Uimm,E26*1000,48000*N_Uimm) -> 10000 | T26: =IF(L26>O26,"KO Tot.>Detr.",IF(L26>S26,"ok< Tot.>Max.","ok")) -> ok | V26: 0 | X26: 0 | Z26: 0 | AE26: vedi All.I | AF26: ok
C27: Impianti climatizzazione e ACS | F27: 0 | G27: 0 | H27: =SUM(F27:G27) -> 0 | I27: 0 | J27: 0 | K27: 0 | L27: 0 | N27: 0 | O27: 0 | S27: =IF(TipoEdif="Edificio Unifamiliare",30000,IF(N_Uimm>8,20000*8+15000*(N_Uimm-8),20000*N_Uimm)) -> 60000 | T27: ok | V27: 0 | X27: 0 | Z27: 0 | AE27: vedi All.I | AF27: vedi All.I
C28: Sistemi di Microgenerazione | F28: 0 | G28: 0 | H28: =SUM(F28:G28) -> 0 | I28: =F28*$G$9+G28*$G$8 -> 0 | J28: =H28+I28 -> 0 | K28: 0 | L28: =SUM(J28:K28) -> 0 | N28: =IF(ISNUMBER(M28)=TRUE,F28/M28,0) -> 0 | O28: 0 | S28: =100000*N_Uimm/1.1 -> 272727.2727 | T28: ok | V28: 0 | X28: 0 | Z28: 0
C29: Impianti Biomassa | F29: 0 | G29: 0 | H29: 0 | I29: 0 | J29: 0 | K29: 0 | L29: 0 | N29: 0 | O29: 0 | S29: =30000*N_Uimm/1.1 -> 81818.18182 | T29: ok | V29: 0 | X29: 0 | Z29: 0 | AE29: vedi All.I | AF29: vedi All.I
C30: Sistemi di Building Automation | F30: 0 | G30: 0 | H30: 0 | I30: 0 | J30: 0 | K30: 0 | L30: 0 | N30: 0 | O30: 0 | S30: =15000/1.1*N_Uimm -> 40909.09091 | T30: ok | V30: 0 | X30: 0 | Z30: 0 | AE30: 50 | AF30: =IF(AE30<>0,IF(N30>AE30,"KO","ok"),"ok") -> ok
C31: Colonnine di Ricarica | F31: 0 | G31: 0 | H31: 0 | I31: 0 | J31: 0 | K31: 0 | L31: 0 | N31: 0 | O31: 0 | S31: =IF(TipoEdif="Edificio Unifamiliare",2000,IF(N_Uimm>8,1200*N_Uimm,1500*N_Uimm)) -> 4500 | T31: ok | V31: 0 | X31: 0 | Z31: 0 | AF31: ok
C32: Eliminazione Barriere architettoniche | F32: 93860 | G32: 6140 | H32: =SUM(F32:G32) -> 100000 | I32: =F32*$G$9+G32*$G$8 -> 10000 | J32: 110000 | K32: 8239.895563 | L32: 118239.8956 | N32: 0 | O32: 0 | S32: =IF(F32>0,IF(105600*N_Uimm/1.1 > L33,105600*N_Uimm/1.1 - L33,0),105600*N_Uimm/1.1 ) -> 0 | T32: KO Tot.>Detr. | V32: 118239.8956 | X32: 0 | Z32: 0 | AF32: ok
C33: SismaBonus | F33: 359782.27 | G33: 23535.72489 | H33: 383317.9949 | I33: 38331.79949 | J33: 421649.7944 | K33: 31585.00245 | L33: 453234.7968 | N33: 0 | O33: 316800 | S33: =105600*N_Uimm/1.1 -> 288000 | T33: KO Tot.>Detr. | V33: 165234.7968 | X33: 294722.8584 | Z33: 22077.14158 | AF33: ok
C34: Totale interventi 110 | F34: =F19+F22+SUM(F23:F33) -> 453642.27 | G34: 29675.72489 | H34: 483317.9949 | I34: 48331.79949 | J34: 531649.7944 | K34: 39824.89802 | L34: 571474.6924 | O34: =O19+O22+SUM(O23:O33) -> 316800 | V34: =SUM(V19:W33) -> 283474.6924 | X34: =SUM(X19:Y33) -> 294722.8584 | Z34: =SUM(Z19:AA33) -> 22077.14158
C36: Lavori Ristrutturazione | E36: 0 | F36: 0 | G36: 0 | H36: =SUM(F36:G36) -> 0 | I36: =F36*$G$9+G36*$G$8 -> 0 | J36: =H36+I36 -> 0 | K36: 0 | L36: =SUM(J36:K36) -> 0 | N36: =IF(ISNUMBER(M36)=TRUE,H36/M36,0) -> 0 | O36: =IF(L36<=S36,L36*E36,S36*E36) -> 0 | S36: =96000*N_Uimm -> 288000 | T36: =IF(S36<>0,IF(L36>S36,"KO","ok"),"ok") -> ok | X36: =IF(O36<>0,J36*O36/L36,0) -> 0 | Z36: =IF(O36<>0,K36*O36/L36,0) -> 0 | AE36: 0 | AF36: =IF(AE36<>0,IF(N36>AE36,"KO","ok"),"ok") -> ok
E37: 0 | F37: 0 | G37: 0 | H37: 0 | I37: 0 | J37: =H37+I37 -> 0 | K37: 0 | L37: 0 | N37: =IF(ISNUMBER(M37)=TRUE,H37/M37,0) -> 0 | O37: =IF(L37<=S37,L37*E37,S37*E37) -> 0 | S37: =96000*N_Uimm -> 288000 | T37: =IF(S37<>0,IF(L37>S37,"KO","ok"),"ok") -> ok | X37: =IF(O37<>0,J37*O37/L37,0) -> 0 | Z37: =IF(O37<>0,K37*O37/L37,0) -> 0 | AE37: 0 | AF37: ok
C38: Totale Altri Interventi | F38: =SUM(F36:F37) -> 0 | G38: =SUM(G36:G37) -> 0 | H38: =SUM(H36:H37) -> 0 | I38: =SUM(I36:I37) -> 0 | J38: =SUM(J36:J37) -> 0 | K38: 0 | L38: 0 | O38: =SUM(O36:O37) -> 0 | X38: =SUM(X36:Y37) -> 0 | Z38: =SUM(Z36:AA37) -> 0
C40: Totali x verifica | F40: =F34+F38 -> 453642.27 | G40: =G34+G38 -> 29675.72489 | H40: 483317.9949 | I40: =I34+I38 -> 48331.79949 | J40: =J34+J38 -> 531649.7944 | K40: 39824.89802 | L40: =L34+L38 -> 571474.6924 | N40: Totale Generale | O40: =O34+O38 -> 316800 | X40: =X34+X38 -> 294722.8584 | Z40: =Z34+Z38 -> 22077.14158
G43: Quota % effettiva per cessione credito a Banca o Impresa Interventi 110: | H43: =100/110 -> 0.9090909091 | I43: =H43*110 -> 100
G44: Quota % effettiva per cessione credito a Banca o Impresa Interventi NO 110: | H44: 0.875 | I44: =H44*100 -> 87.5 | J44: Quota Impresa | K44: Quota Tecnici
G45: Netto a seguito Cessione Credito a Banca/Impresa : | H45: =H43*O34+H44*O38 -> 288000 | J45: =X40*H45/O40 -> 267929.8713 | K45: =Z40*H45/O40 -> 20070.12871
G46: Quota a carico cliente : | H46: =L40-H45 -> 283474.6924 | J46: =H46*X40/O40 -> 263719.9231 | K46: =H46*Z40/O40 -> 19754.76931

Sheet SAL.30%
C3: STATO AVANZAMENTO LAVORI N.1 | F3: ='Dati Gen'!B28 -> 0 | N3: ='Dati Gen'!I3 -> ©2021 SIM srl - www.madosoft.it
C4: 26/06/2021 | F4: ='Dati Gen'!B29 -> 0 | N4: ='Dati Gen'!I2 -> Pratica.110
E6: Imponibile | G6: %iva | H6: IVA | I6: Importo
C7: ='Computo-Massimali'!C7 -> Importo complessivo Lavori | E7: ='Computo-Massimali'!F7 -> 483318 | G7: ='Computo-Massimali'!G7 -> 0.1 | H7: ='Computo-Massimali'!H7 -> 48331.8 | I7: ='Computo-Massimali'!I7 -> 531649.8
C8: ='Computo-Massimali'!C8 -> di cui Oneri/Lavori x Sicurezza | E8: ='Computo-Massimali'!F8 -> 29675.7252 | G8: ='Computo-Massimali'!G8 -> 0.1 | H8: ='Computo-Massimali'!H8 -> 2967.57252 | I8: ='Computo-Massimali'!I8 -> 32643.29772
C9: ='Computo-Massimali'!C9 -> Importo Lavori al netto della Sicurezza | E9: ='Computo-Massimali'!F9 -> 453642.2748 | G9: ='Computo-Massimali'!G9 -> 0.1 | H9: ='Computo-Massimali'!H9 -> 45364.22748 | I9: ='Computo-Massimali'!I9 -> 499006.5023
C10: ='Computo-Massimali'!C10 -> Spese tecniche (compresa iva) | E10: ='Computo-Massimali'!F10 -> 39824.9 | G10: ='Computo-Massimali'!G10 -> 0 | H10: ='Computo-Massimali'!H10 -> 0 | I10: ='Computo-Massimali'!I10 -> 39824.9
I11: ='Computo-Massimali'!I11 -> 571474.7
C12: Lavori Eseguiti
C13: Oneri/Lavori x Sicurezza | E13: 6866.28
C14: Lavorazione | E14: Importo Lavori Eseguiti | G14: Incidenza Sicurezza | H14: Imponibile | I14: Iva | J14: Importo c.iva | K14: Spese tecniche | L14: Totale | M14: % SAL | N14: Detrazione | Q14: ='Computo-Massimali'!S15 -> Massimale spesa | S14: Ripartizione Spese Tecniche | T14: Fatturare
C15: ='Computo-Massimali'!C16 -> Isolamento pareti perimetrali | E15: 19759.2 | G15: =IF('Computo-Massimali'!F16<>0,'Computo-Massimali'!G16*E15/'Computo-Massimali'!F16,0) -> 0 | H15: =SUM(E15:G15) -> 19759.2 | I15: =H15*'Computo-Massimali'!$G$9 -> 1975.92 | J15: =SUM(H15:I15) -> 21735.12 | K15: =IF('Computo-Massimali'!F16<>0,'Computo-Massimali'!K16*E15/'Computo-Massimali'!F16,0) -> 0 | L15: =SUM(J15:K15) -> 21735.12 | M15: =IF(L15>0,L15/'Computo-Massimali'!L16,0) ->  | N15: =IF(L15<=Q15,L15*1.1,Q15*1.1) -> 23908.632 | Q15: ='Computo-Massimali'!S16 -> 120000 | S15: =IF('Computo-Massimali'!S3<>0,'Computo-Massimali'!S3,"-") -> Ape Ante | T15: =$K$40*'Computo-Massimali'!AC3/'Computo-Massimali'!$AC$13 -> 0
C16: ='Computo-Massimali'!C17 -> Isolamento coperture | E16: 14499.84 | G16: =IF('Computo-Massimali'!F17<>0,'Computo-Massimali'!G17*E16/'Computo-Massimali'!F17,0) -> 0 | H16: =SUM(E16:G16) -> 14499.84 | I16: =H16*'Computo-Massimali'!$G$9 -> 1449.984 | J16: =SUM(H16:I16) -> 15949.824 | K16: =IF('Computo-Massimali'!F17<>0,'Computo-Massimali'!K17*E16/'Computo-Massimali'!F17,0) -> 0 | L16: =SUM(J16:K16) -> 15949.824 | M16: =IF(L16>0,L16/'Computo-Massimali'!L17,0) ->  | N16: 17544.8064 | Q16: ='Computo-Massimali'!S17 -> 120000 | S16: =IF('Computo-Massimali'!S4<>0,'Computo-Massimali'!S4,"-") -> Progettazione e DL | T16: =$K$40*'Computo-Massimali'!AC4/'Computo-Massimali'!$AC$13 -> 0
C17: ='Computo-Massimali'!C18 -> Isolamento Pavimenti | E17: 0 | G17: =IF('Computo-Massimali'!F18<>0,'Computo-Massimali'!G18*E17/'Computo-Massimali'!F18,0) -> 0 | H17: 0 | I17: =H17*'Computo-Massimali'!$G$9 -> 0 | J17: 0 | K17: =IF('Computo-Massimali'!F18<>0,'Computo-Massimali'!K18*E17/'Computo-Massimali'!F18,0) -> 0 | L17: 0 | M17: =IF(L17>0,L17/'Computo-Massimali'!L18,0) -> 0 | N17: 0 | Q17: ='Computo-Massimali'!S18 -> 120000 | S17: =IF('Computo-Massimali'!S5<>0,'Computo-Massimali'!S5,"-") -> Coord.SicurezzaEsec. | T17: =$K$40*'Computo-Massimali'!AC5/'Computo-Massimali'!$AC$13 -> 0
C18: ='Computo-Massimali'!C19 -> Isolamento sup. verticali e/o orizzontali | E18: =SUM(E15:F17) -> 34259.04 | G18: =SUM(G15:G17) -> 0 | H18: =SUM(H15:H17) -> 34259.04 | I18: =SUM(I15:I17) -> 3425.904 | J18: =SUM(J15:J17) -> 37684.944 | K18: =SUM(K15:K17) -> 0 | L18: =IF('Dati Gen'!P17="Versione DEMO","Versione DEMO",SUM(J18:K18)) -> Versione DEMO | M18: =IF(L18>0,L18/'Computo-Massimali'!L19,0) ->  | N18: 132000 | Q18: ='Computo-Massimali'!S19 -> 120000 | S18: =IF('Computo-Massimali'!S6<>0,'Computo-Massimali'!S6,"-") -> Ape Post | T18: =$K$40*'Computo-Massimali'!AC6/'Computo-Massimali'!$AC$13 -> 0
C19: ='Computo-Massimali'!C20 -> Serramenti | E19: 0 | G19: =IF('Computo-Massimali'!F20<>0,'Computo-Massimali'!G20*E19/'Computo-Massimali'!F20,0) -> 0 | H19: 0 | I19: =H19*'Computo-Massimali'!$G$9 -> 0 | J19: 0 | K19: =IF('Computo-Massimali'!F20<>0,'Computo-Massimali'!K20*E19/'Computo-Massimali'!F20,0) -> 0 | L19: 0 | M19: =IF(L19>0,L19/'Computo-Massimali'!L20,0) -> 0 | N19: 0 | Q19: ='Computo-Massimali'!S20 -> 163636.3636 | S19: =IF('Computo-Massimali'!T7<>0,'Computo-Massimali'!T7,"-") -> - | T19: =$K$40*'Computo-Massimali'!AC7/'Computo-Massimali'!$AC$13 -> 0
C20: ='Computo-Massimali'!C21 -> Serramenti con chiusure oscuranti | E20: 1589.3 | G20: =IF('Computo-Massimali'!F21<>0,'Computo-Massimali'!G21*E20/'Computo-Massimali'!F21,0) -> 0 | H20: 1589.3 | I20: =H20*'Computo-Massimali'!$G$9 -> 158.93 | J20: 1748.23 | K20: =IF('Computo-Massimali'!F21<>0,'Computo-Massimali'!K21*E20/'Computo-Massimali'!F21,0) -> 0 | L20: 1748.23 | M20: =IF(L20>0,L20/'Computo-Massimali'!L21,0) ->  | N20: 1923.053 | Q20: ='Computo-Massimali'!S21 -> 163636.3636 | S20: =IF('Computo-Massimali'!T8<>0,'Computo-Massimali'!T8,"-") -> - | T20: =$K$40*'Computo-Massimali'!AC8/'Computo-Massimali'!$AC$13 -> 0
C21: Serramenti + chiusure oscuranti | E21: =SUM(E19:F20) -> 1589.3 | G21: =SUM(G19:G20) -> 0 | H21: 1589.3 | I21: 158.93 | J21: 1748.23 | K21: 0 | L21: 1748.23 | M21: =IF(L21>0,L21/'Computo-Massimali'!L22,0) ->  | N21: 1923.053 | Q21: ='Computo-Massimali'!S22 -> 163636.3636 | S21: =IF('Computo-Massimali'!T9<>0,'Computo-Massimali'!T9,"-") -> - | T21: =$K$40*'Computo-Massimali'!AC9/'Computo-Massimali'!$AC$13 -> 0
C22: ='Computo-Massimali'!C23 -> Schermature solari | E22: 0 | G22: =IF('Computo-Massimali'!F23<>0,'Computo-Massimali'!G23*E22/'Computo-Massimali'!F23,0) -> 0 | H22: 0 | I22: =H22*'Computo-Massimali'!$G$9 -> 0 | J22: 0 | K22: =IF('Computo-Massimali'!F23<>0,'Computo-Massimali'!K23*E22/'Computo-Massimali'!F23,0) -> 0 | L22: 0 | M22: =IF(L22>0,L22/'Computo-Massimali'!L23,0) -> 0 | N22: 0 | Q22: ='Computo-Massimali'!S23 -> 163636.3636 | S22: =IF('Computo-Massimali'!S12<>0,'Computo-Massimali'!S12,"-") -> Visto Conformità | T22: =$K$40*'Computo-Massimali'!AC12/'Computo-Massimali'!$AC$13 -> 0
C23: ='Computo-Massimali'!C24 -> Solare Termico - con collettori solari | E23: 0 | G23: =IF('Computo-Massimali'!F24<>0,'Computo-Massimali'!G24*E23/'Computo-Massimali'!F24,0) -> 0 | H23: 0 | I23: =H23*'Computo-Massimali'!$G$9 -> 0 | J23: 0 | K23: =IF('Computo-Massimali'!F24<>0,'Computo-Massimali'!K24*E23/'Computo-Massimali'!F24,0) -> 0 | L23: 0 | M23: =IF(L23>0,L23/'Computo-Massimali'!L24,0) -> 0 | N23: 0 | Q23: ='Computo-Massimali'!S24 -> 60000 | T23: =SUM(T15:T22) -> 0
C24: =MID('Computo-Massimali'!C25,1,28) &" kWp" -> Solare Fotovoltaico kWp | D24: ='Computo-Massimali'!E25 -> 6 | E24: 7080 | G24: =IF('Computo-Massimali'!F25<>0,'Computo-Massimali'!G25*E24/'Computo-Massimali'!F25,0) -> 0 | H24: 7080 | I24: =H24*'Computo-Massimali'!$G$9 -> 708 | J24: 7788 | K24: =IF('Computo-Massimali'!F25<>0,'Computo-Massimali'!K25*E24/'Computo-Massimali'!F25,0) -> 0 | L24: 7788 | M24: =IF(L24>0,L24/'Computo-Massimali'!L25,0) ->  | N24: 8566.8 | Q24: ='Computo-Massimali'!S25 -> 14400
C25: =MID('Computo-Massimali'!C26,1,28)&" kWh" -> Sistema di Accumulo kWh | D25: ='Computo-Massimali'!E26 -> 10 | E25: 0 | G25: =IF('Computo-Massimali'!F26<>0,'Computo-Massimali'!G26*E25/'Computo-Massimali'!F26,0) -> 0 | H25: 0 | I25: =H25*'Computo-Massimali'!$G$9 -> 0 | J25: 0 | K25: =IF('Computo-Massimali'!F26<>0,'Computo-Massimali'!K26*E25/'Computo-Massimali'!F26,0) -> 0 | L25: 0 | M25: =IF(L25>0,L25/'Computo-Massimali'!L26,0) -> 0 | N25: 0 | Q25: ='Computo-Massimali'!S26 -> 10000
C26: ='Computo-Massimali'!C27 -> Impianti climatizzazione e ACS | E26: 0 | G26: =IF('Computo-Massimali'!F27<>0,'Computo-Massimali'!G27*E26/'Computo-Massimali'!F27,0) -> 0 | H26: 0 | I26: =H26*'Computo-Massimali'!$G$9 -> 0 | J26: 0 | K26: =IF('Computo-Massimali'!F27<>0,'Computo-Massimali'!K27*E26/'Computo-Massimali'!F27,0) -> 0 | L26: =IF('Dati Gen'!P17="Versione DEMO","Versione DEMO",SUM(J26:K26)) -> Versione DEMO | M26: =IF(L26>0,L26/'Computo-Massimali'!L27,0) ->  | N26: 66000 | Q26: ='Computo-Massimali'!S27 -> 60000
C27: ='Computo-Massimali'!C28 -> Sistemi di Microgenerazione | E27: 0 | G27: =IF('Computo-Massimali'!F28<>0,'Computo-Massimali'!G28*E27/'Computo-Massimali'!F28,0) -> 0 | H27: =SUM(E27:G27) -> 0 | I27: =H27*'Computo-Massimali'!$G$9 -> 0 | J27: =SUM(H27:I27) -> 0 | K27: =IF('Computo-Massimali'!F28<>0,'Computo-Massimali'!K28*E27/'Computo-Massimali'!F28,0) -> 0 | L27: =SUM(J27:K27) -> 0 | M27: =IF(L27>0,L27/'Computo-Massimali'!L28,0) -> 0 | N27: =IF(L27<=Q27,L27*1.1,Q27*1.1) -> 0 | Q27: ='Computo-Massimali'!S28 -> 272727.2727
C28: ='Computo-Massimali'!C29 -> Impianti Biomassa | E28: 0 | G28: =IF('Computo-Massimali'!F29<>0,'Computo-Massimali'!G29*E28/'Computo-Massimali'!F29,0) -> 0 | H28: 0 | I28: =H28*'Computo-Massimali'!$G$9 -> 0 | J28: 0 | K28: =IF('Computo-Massimali'!F29<>0,'Computo-Massimali'!K29*E28/'Computo-Massimali'!F29,0) -> 0 | L28: 0 | M28: =IF(L28>0,L28/'Computo-Massimali'!L29,0) -> 0 | N28: 0 | Q28: ='Computo-Massimali'!S29 -> 81818.18182
C29: ='Computo-Massimali'!C30 -> Sistemi di Building Automation | E29: 0 | G29: =IF('Computo-Massimali'!F30<>0,'Computo-Massimali'!G30*E29/'Computo-Massimali'!F30,0) -> 0 | H29: 0 | I29: =H29*'Computo-Massimali'!$G$9 -> 0 | J29: 0 | K29: =IF('Computo-Massimali'!F30<>0,'Computo-Massimali'!K30*E29/'Computo-Massimali'!F30,0) -> 0 | L29: 0 | M29: =IF(L29>0,L29/'Computo-Massimali'!L30,0) -> 0 | N29: 0 | Q29: ='Computo-Massimali'!S30 -> 40909.09091
C30: ='Computo-Massimali'!C31 -> Colonnine di Ricarica | E30: 0 | G30: =IF('Computo-Massimali'!F31<>0,'Computo-Massimali'!G31*E30/'Computo-Massimali'!F31,0) -> 0 | H30: 0 | I30: =H30*'Computo-Massimali'!$G$9 -> 0 | J30: 0 | K30: =IF('Computo-Massimali'!F31<>0,'Computo-Massimali'!K31*E30/'Computo-Massimali'!F31,0) -> 0 | L30: 0 | M30: =IF(L30>0,L30/'Computo-Massimali'!L31,0) -> 0 | N30: 0 | Q30: ='Computo-Massimali'!S31 -> 4500
C31: ='Computo-Massimali'!C32 -> Eliminazione Barriere architettoniche | E31: 0 | G31: =IF('Computo-Massimali'!F32<>0,'Computo-Massimali'!G32*E31/'Computo-Massimali'!F32,0) -> 0 | H31: =SUM(E31:G31) -> 0 | I31: =H31*'Computo-Massimali'!$G$9 -> 0 | J31: =SUM(H31:I31) -> 0 | K31: =IF('Computo-Massimali'!F32<>0,'Computo-Massimali'!K32*E31/'Computo-Massimali'!F32,0) -> 0 | L31: =SUM(J31:K31) -> 0 | M31: =IF(L31>0,L31/'Computo-Massimali'!L32,0) -> 0 | N31: =IF(L31<=Q31,L31*1.1,Q31*1.1) -> 0 | Q31: ='Computo-Massimali'!S32 -> 0
C32: ='Computo-Massimali'!C33 -> SismaBonus | E32: 0 | G32: =IF('Computo-Massimali'!F33<>0,'Computo-Massimali'!G33*E32/'Computo-Massimali'!F33,0) -> 0 | H32: 0 | I32: =H32*'Computo-Massimali'!$G$9 -> 0 | J32: 0 | K32: =IF('Computo-Massimali'!F33<>0,'Computo-Massimali'!K33*E32/'Computo-Massimali'!F33,0) -> 0 | L32: 0 | M32: =IF(L32>0,L32/'Computo-Massimali'!L33,0) -> 0 | N32: 0 | Q32: ='Computo-Massimali'!S33 -> 288000
C33: Totali SAL N.1 - Superbonus 110 | E33: =E18+E21+SUM(E22:F32) -> 42928.34 | G33: =G18+G21+SUM(G22:G32) -> 0 | H33: =H18+H21+SUM(H22:H32) -> 42928.34 | I33: 4292.834 | J33: 47221.174 | K33: 0 | M33: =IF(L33>0,L33/'Computo-Massimali'!L34,0) ->  | N33: =N18+N21+SUM(N22:N32) -> 208489.853
K34: =IF(M33>=29.999%,"","SAL Superbonus 110 inferiore 30%") -> 
C35: ='Computo-Massimali'!C36 -> Lavori Ristrutturazione | D35: 0.5 | E35: 3635.41 | G35: =IF('Computo-Massimali'!F36<>0,'Computo-Massimali'!G36*E35/'Computo-Massimali'!F36,0) -> 0 | H35: =SUM(E35:G35) -> 3635.41 | I35: =H35*'Computo-Massimali'!$G$9 -> 363.541 | J35: =SUM(H35:I35) -> 3998.951 | K35: =IF('Computo-Massimali'!F36<>0,'Computo-Massimali'!K36*E35/'Computo-Massimali'!F36,0) -> 0 | L35: =SUM(J35:K35) -> 3998.951 | M35: =IF(L35>0,L35/'Computo-Massimali'!L36,0) ->  | N35: =IF(L35<=Q35*D35,L35*D35,U35*D35) -> 1999.4755 | Q35: ='Computo-Massimali'!S36 -> 288000
C36: ='Computo-Massimali'!C37 -> 0 | D36: ='Computo-Massimali'!E37 -> 0 | E36: 0 | G36: =IF('Computo-Massimali'!F37<>0,'Computo-Massimali'!G37*E36/'Computo-Massimali'!F37,0) -> 0 | H36: 0 | I36: =H36*'Computo-Massimali'!$G$9 -> 0 | J36: 0 | K36: =IF('Computo-Massimali'!F37<>0,'Computo-Massimali'!K37*E36/'Computo-Massimali'!F37,0) -> 0 | L36: 0 | M36: =IF(L36>0,L36/'Computo-Massimali'!L37,0) -> 0 | N36: =IF(L36<=Q36*D36,L36*D36,U36*D36) -> 0 | Q36: ='Computo-Massimali'!S37 -> 288000
C37: Totali SAL N.1 - AltrI Interventi | E37: =SUM(E35:F36) -> 3635.41 | G37: =SUM(G35:G36) -> 0 | H37: =SUM(H35:H36) -> 3635.41 | I37: =SUM(I35:I36) -> 363.541 | J37: =SUM(J35:J36) -> 3998.951 | K37: 0 | L37: 3998.951 | M37: =IF(L37>0,L37/'Computo-Massimali'!L38,0) ->  | N37: =SUM(N35:N36) -> 1999.4755
E39: =E14 -> Importo Lavori Eseguiti | G39: Incidenza Sicurezza | H39: Imponibile | I39: =I14 -> Iva | J39: Importo c.iva | K39: Spese tecniche | L39: Totale | M39: % SAL | N39: Detrazione
C40: Totali SAL N.1 | E40: =E33+E37 -> 46563.75 | G40: =G33+G37 -> 0 | H40: =H33+H37 -> 46563.75 | I40: =I37+I33 -> 4656.375 | J40: =J37+J33 -> 51220.125 | K40: =K37+K33 -> 0 | L40: =SUM(J40:K40) -> 51220.125 | M40: =IF(L40>0,L40/'Computo-Massimali'!L40,0) -> 0.08962798472 | N40: =N37+N33 -> 210489.3285
C42: =IF(ABS(E13-G40)>0.01,"Oneri/Lavori Sicurezza non imputabili al SAL, per lavori non eseguiti","") -> Oneri/Lavori Sicurezza non imputabili al SAL, per lavori non eseguiti | G42: =IF(C42<>"",E13-G40,"") -> 6866.28
C43: =IF($C$42<>"","Importo Effettivo Lavori Eseguiti","") -> Importo Effettivo Lavori Eseguiti | E43: =IF($C$42<>"",E40,"") -> 46563.75 | G43: =IF($C$42<>"",E13,"") -> 6866.28 | H43: =IF($C$42<>"",E43+G43,"") -> 53430.03 | I43: =IF($C$42<>"",H43*G9,"") -> 5343.003 | J43: =IF($C$42<>"",H43+I43,"") -> 58773.033 | K43: =IF($C$42<>"",K40,"") -> 0 | L43: =IF($C$42<>"",J43+K43,"") -> 58773.033 | M43: =IF($C$42<>"",L43/'Computo-Massimali'!L40,"") -> 0.102844507 | N43: =IF($C$42<>"",L43*1.1,"") -> 64650.3363

Sheet SAL.60%
C3: STATO AVANZAMENTO LAVORI N.2 | F3: ='Dati Gen'!B28 -> 0 | N3: ='Dati Gen'!I3 -> ©2021 SIM srl - www.madosoft.it
C4: 26/07/2021 | F4: ='Dati Gen'!B29 -> 0 | N4: ='Dati Gen'!I2 -> Pratica.110
E6: Imponibile | G6: %iva | H6: IVA | I6: Importo
C7: ='Computo-Massimali'!C7 -> Importo complessivo Lavori | E7: ='Computo-Massimali'!F7 -> 483318 | G7: ='Computo-Massimali'!G7 -> 0.1 | H7: ='Computo-Massimali'!H7 -> 48331.8 | I7: ='Computo-Massimali'!I7 -> 531649.8
C8: ='Computo-Massimali'!C8 -> di cui Oneri/Lavori x Sicurezza | E8: ='Computo-Massimali'!F8 -> 29675.7252 | G8: ='Computo-Massimali'!G8 -> 0.1 | H8: ='Computo-Massimali'!H8 -> 2967.57252 | I8: ='Computo-Massimali'!I8 -> 32643.29772
C9: ='Computo-Massimali'!C9 -> Importo Lavori al netto della Sicurezza | E9: ='Computo-Massimali'!F9 -> 453642.2748 | G9: ='Computo-Massimali'!G9 -> 0.1 | H9: ='Computo-Massimali'!H9 -> 45364.22748 | I9: ='Computo-Massimali'!I9 -> 499006.5023
C10: ='Computo-Massimali'!C10 -> Spese tecniche (compresa iva) | E10: ='Computo-Massimali'!F10 -> 39824.9 | I10: ='Computo-Massimali'!I10 -> 39824.9
I11: ='Computo-Massimali'!I11 -> 571474.7
C12: Lavori Eseguiti
C13: Oneri/Lavori x Sicurezza
C14: Lavorazione | E14: Importo Lavori Eseguiti | G14: Incidenza Sicurezza | H14: Imponibile | I14: Iva | J14: Importo c.iva | K14: Spese tecniche | L14: Totale | M14: % SAL | N14: Detrazione | Q14: ='Computo-Massimali'!S15 -> Massimale spesa | S14: Ripartizione Spese Tecniche | U14: Fatturare
C15: ='Computo-Massimali'!C16 -> Isolamento pareti perimetrali | G15: =IF('Computo-Massimali'!F16<>0,'Computo-Massimali'!G16*E15/'Computo-Massimali'!F16,0) -> 0 | H15: =SUM(E15:G15) -> 0 | I15: =H15*'Computo-Massimali'!$G$9 -> 0 | J15: =SUM(H15:I15) -> 0 | K15: =IF('Computo-Massimali'!F16<>0,'Computo-Massimali'!K16*E15/'Computo-Massimali'!F16,0) -> 0 | L15: =SUM(J15:K15) -> 0 | M15: =IF(L15>0,L15/'Computo-Massimali'!L16,0) -> 0 | N15: =IF(L15<=Q15,L15*1.1,Q15*1.1) -> 0 | Q15: ='Computo-Massimali'!S16 -> 120000 | S15: =IF('Computo-Massimali'!S3<>0,'Computo-Massimali'!S3,"-") -> Ape Ante | T15: =$K$40*'Computo-Massimali'!AC3/'Computo-Massimali'!$AC$13 -> 0 | U15: =IF(T15>0,T15-'SAL.30%'!T15,"0") -> 0
C16: ='Computo-Massimali'!C17 -> Isolamento coperture | E16: 0 | G16: =IF('Computo-Massimali'!F17<>0,'Computo-Massimali'!G17*E16/'Computo-Massimali'!F17,0) -> 0 | H16: =SUM(E16:G16) -> 0 | I16: =H16*'Computo-Massimali'!$G$9 -> 0 | J16: =SUM(H16:I16) -> 0 | K16: =IF('Computo-Massimali'!F17<>0,'Computo-Massimali'!K17*E16/'Computo-Massimali'!F17,0) -> 0 | L16: =SUM(J16:K16) -> 0 | M16: =IF(L16>0,L16/'Computo-Massimali'!L17,0) -> 0 | N16: 0 | Q16: ='Computo-Massimali'!S17 -> 120000 | S16: =IF('Computo-Massimali'!S4<>0,'Computo-Massimali'!S4,"-") -> Progettazione e DL | T16: =$K$40*'Computo-Massimali'!AC4/'Computo-Massimali'!$AC$13 -> 0 | U16: =IF(T16>0,T16-'SAL.30%'!T16,"0") -> 0
C17: ='Computo-Massimali'!C18 -> Isolamento Pavimenti | E17: 0 | G17: =IF('Computo-Massimali'!F18<>0,'Computo-Massimali'!G18*E17/'Computo-Massimali'!F18,0) -> 0 | H17: 0 | I17: =H17*'Computo-Massimali'!$G$9 -> 0 | J17: 0 | K17: =IF('Computo-Massimali'!F18<>0,'Computo-Massimali'!K18*E17/'Computo-Massimali'!F18,0) -> 0 | L17: 0 | M17: =IF(L17>0,L17/'Computo-Massimali'!L18,0) -> 0 | N17: 0 | Q17: ='Computo-Massimali'!S18 -> 120000 | S17: =IF('Computo-Massimali'!S5<>0,'Computo-Massimali'!S5,"-") -> Coord.SicurezzaEsec. | T17: =$K$40*'Computo-Massimali'!AC5/'Computo-Massimali'!$AC$13 -> 0 | U17: =IF(T17>0,T17-'SAL.30%'!T17,"0") -> 0
C18: ='Computo-Massimali'!C19 -> Isolamento sup. verticali e/o orizzontali | E18: =SUM(E15:F17) -> 0 | G18: =SUM(G15:G17) -> 0 | H18: =SUM(H15:H17) -> 0 | I18: =SUM(I15:I17) -> 0 | J18: =SUM(J15:J17) -> 0 | K18: =SUM(K15:K17) -> 0 | L18: =IF('Dati Gen'!P17="Versione DEMO","Versione DEMO",SUM(J18:K18)) -> Versione DEMO | M18: =IF(L18>0,L18/'Computo-Massimali'!L19,0) ->  | N18: =IF(L18<=Q18,L18*1.1,Q18*1.1) -> 132000 | Q18: ='Computo-Massimali'!S19 -> 120000 | S18: =IF('Computo-Massimali'!S6<>0,'Computo-Massimali'!S6,"-") -> Ape Post | T18: =$K$40*'Computo-Massimali'!AC6/'Computo-Massimali'!$AC$13 -> 0 | U18: =IF(T18>0,T18-'SAL.30%'!T18,"0") -> 0
C19: ='Computo-Massimali'!C20 -> Serramenti | E19: 0 | G19: =IF('Computo-Massimali'!F20<>0,'Computo-Massimali'!G20*E19/'Computo-Massimali'!F20,0) -> 0 | H19: 0 | I19: =H19*'Computo-Massimali'!$G$9 -> 0 | J19: 0 | K19: =IF('Computo-Massimali'!F20<>0,'Computo-Massimali'!K20*E19/'Computo-Massimali'!F20,0) -> 0 | L19: 0 | M19: =IF(L19>0,L19/'Computo-Massimali'!L20,0) -> 0 | N19: 0 | Q19: ='Computo-Massimali'!S20 -> 163636.3636 | S19: =IF('Computo-Massimali'!T7<>0,'Computo-Massimali'!T7,"-") -> - | T19: =$K$40*'Computo-Massimali'!AC7/'Computo-Massimali'!$AC$13 -> 0 | U19: =IF(T19>0,T19-'SAL.30%'!T19,"0") -> 0
C20: ='Computo-Massimali'!C21 -> Serramenti con chiusure oscuranti | G20: =IF('Computo-Massimali'!F21<>0,'Computo-Massimali'!G21*E20/'Computo-Massimali'!F21,0) -> 0 | H20: 0 | I20: =H20*'Computo-Massimali'!$G$9 -> 0 | J20: 0 | K20: =IF('Computo-Massimali'!F21<>0,'Computo-Massimali'!K21*E20/'Computo-Massimali'!F21,0) -> 0 | L20: 0 | M20: =IF(L20>0,L20/'Computo-Massimali'!L21,0) -> 0 | N20: 0 | Q20: ='Computo-Massimali'!S21 -> 163636.3636 | S20: =IF('Computo-Massimali'!T8<>0,'Computo-Massimali'!T8,"-") -> - | T20: =$K$40*'Computo-Massimali'!AC8/'Computo-Massimali'!$AC$13 -> 0 | U20: =IF(T20>0,T20-'SAL.30%'!T20,"0") -> 0
C21: Serramenti + chiusure oscuranti | E21: =SUM(E19:F20) -> 0 | G21: =SUM(G19:G20) -> 0 | H21: 0 | I21: 0 | J21: 0 | K21: 0 | L21: 0 | M21: =IF(L21>0,L21/'Computo-Massimali'!L23,0) -> 0 | N21: 0 | Q21: ='Computo-Massimali'!S23 -> 163636.3636 | S21: =IF('Computo-Massimali'!T9<>0,'Computo-Massimali'!T9,"-") -> - | T21: =$K$40*'Computo-Massimali'!AC9/'Computo-Massimali'!$AC$13 -> 0 | U21: =IF(T21>0,T21-'SAL.30%'!T21,"0") -> 0
C22: ='Computo-Massimali'!C23 -> Schermature solari | E22: 0 | G22: =IF('Computo-Massimali'!F23<>0,'Computo-Massimali'!G23*E22/'Computo-Massimali'!F23,0) -> 0 | H22: 0 | I22: =H22*'Computo-Massimali'!$G$9 -> 0 | J22: 0 | K22: =IF('Computo-Massimali'!F23<>0,'Computo-Massimali'!K23*E22/'Computo-Massimali'!F23,0) -> 0 | L22: 0 | M22: =IF(L22>0,L22/'Computo-Massimali'!L23,0) -> 0 | N22: 0 | Q22: ='Computo-Massimali'!S23 -> 163636.3636 | S22: =IF('Computo-Massimali'!S12<>0,'Computo-Massimali'!S12,"-") -> Visto Conformità | T22: =$K$40*'Computo-Massimali'!AC12/'Computo-Massimali'!$AC$13 -> 0 | U22: =IF(T22>0,T22-'SAL.30%'!T22,"0") -> 0
C23: ='Computo-Massimali'!C24 -> Solare Termico - con collettori solari | E23: 0 | G23: =IF('Computo-Massimali'!F24<>0,'Computo-Massimali'!G24*E23/'Computo-Massimali'!F24,0) -> 0 | H23: 0 | I23: =H23*'Computo-Massimali'!$G$9 -> 0 | J23: 0 | K23: =IF('Computo-Massimali'!F24<>0,'Computo-Massimali'!K24*E23/'Computo-Massimali'!F24,0) -> 0 | L23: 0 | M23: =IF(L23>0,L23/'Computo-Massimali'!L24,0) -> 0 | N23: 0 | Q23: ='Computo-Massimali'!S24 -> 60000 | T23: =SUM(T15:T22) -> 0 | U23: =SUM(U15:U22) -> 0
C24: =MID('Computo-Massimali'!C25,1,28) &" kWp" -> Solare Fotovoltaico kWp | D24: ='Computo-Massimali'!E25 -> 6 | E24: 0 | G24: =IF('Computo-Massimali'!F25<>0,'Computo-Massimali'!G25*E24/'Computo-Massimali'!F25,0) -> 0 | H24: 0 | I24: =H24*'Computo-Massimali'!$G$9 -> 0 | J24: 0 | K24: =IF('Computo-Massimali'!F25<>0,'Computo-Massimali'!K25*E24/'Computo-Massimali'!F25,0) -> 0 | L24: 0 | M24: =IF(L24>0,L24/'Computo-Massimali'!L25,0) -> 0 | N24: 0 | Q24: ='Computo-Massimali'!S25 -> 14400
C25: =MID('Computo-Massimali'!C26,1,28) &" kWp" -> Sistema di Accumulo kWp | D25: ='Computo-Massimali'!E26 -> 10 | E25: 0 | G25: =IF('Computo-Massimali'!F26<>0,'Computo-Massimali'!G26*E25/'Computo-Massimali'!F26,0) -> 0 | H25: 0 | I25: =H25*'Computo-Massimali'!$G$9 -> 0 | J25: 0 | K25: =IF('Computo-Massimali'!F26<>0,'Computo-Massimali'!K26*E25/'Computo-Massimali'!F26,0) -> 0 | L25: 0 | M25: =IF(L25>0,L25/'Computo-Massimali'!L26,0) -> 0 | N25: 0 | Q25: ='Computo-Massimali'!S26 -> 10000
C26: ='Computo-Massimali'!C27 -> Impianti climatizzazione e ACS | G26: =IF('Computo-Massimali'!F27<>0,'Computo-Massimali'!G27*E26/'Computo-Massimali'!F27,0) -> 0 | H26: 0 | I26: =H26*'Computo-Massimali'!$G$9 -> 0 | J26: 0 | K26: =IF('Computo-Massimali'!F27<>0,'Computo-Massimali'!K27*E26/'Computo-Massimali'!F27,0) -> 0 | L26: =IF('Dati Gen'!P17="Versione DEMO","Versione DEMO",SUM(J26:K26)) -> Versione DEMO | M26: =IF(L26>0,L26/'Computo-Massimali'!L27,0) ->  | N26: 66000 | Q26: ='Computo-Massimali'!S27 -> 60000
C27: ='Computo-Massimali'!C28 -> Sistemi di Microgenerazione | E27: 0 | G27: =IF('Computo-Massimali'!F28<>0,'Computo-Massimali'!G28*E27/'Computo-Massimali'!F28,0) -> 0 | K27: =IF('Computo-Massimali'!F28<>0,'Computo-Massimali'!K28*E27/'Computo-Massimali'!F28,0) -> 0 | Q27: ='Computo-Massimali'!S28 -> 272727.2727
C28: ='Computo-Massimali'!C29 -> Impianti Biomassa | E28: 0 | G28: =IF('Computo-Massimali'!F29<>0,'Computo-Massimali'!G29*E28/'Computo-Massimali'!F29,0) -> 0 | H28: 0 | I28: =H28*'Computo-Massimali'!$G$9 -> 0 | J28: 0 | K28: =IF('Computo-Massimali'!F29<>0,'Computo-Massimali'!K29*E28/'Computo-Massimali'!F29,0) -> 0 | L28: 0 | M28: =IF(L28>0,L28/'Computo-Massimali'!L29,0) -> 0 | N28: 0 | Q28: ='Computo-Massimali'!S29 -> 81818.18182
C29: ='Computo-Massimali'!C30 -> Sistemi di Building Automation | E29: 0 | G29: =IF('Computo-Massimali'!F30<>0,'Computo-Massimali'!G30*E29/'Computo-Massimali'!F30,0) -> 0 | H29: 0 | I29: =H29*'Computo-Massimali'!$G$9 -> 0 | J29: 0 | K29: =IF('Computo-Massimali'!F30<>0,'Computo-Massimali'!K30*E29/'Computo-Massimali'!F30,0) -> 0 | L29: 0 | M29: =IF(L29>0,L29/'Computo-Massimali'!L30,0) -> 0 | N29: 0 | Q29: ='Computo-Massimali'!S30 -> 40909.09091
C30: ='Computo-Massimali'!C31 -> Colonnine di Ricarica | E30: 0 | G30: =IF('Computo-Massimali'!F31<>0,'Computo-Massimali'!G31*E30/'Computo-Massimali'!F31,0) -> 0 | H30: 0 | I30: =H30*'Computo-Massimali'!$G$9 -> 0 | J30: 0 | K30: =IF('Computo-Massimali'!F31<>0,'Computo-Massimali'!K31*E30/'Computo-Massimali'!F31,0) -> 0 | L30: 0 | M30: =IF(L30>0,L30/'Computo-Massimali'!L31,0) -> 0 | N30: 0 | Q30: ='Computo-Massimali'!S31 -> 4500
C31: ='Computo-Massimali'!C32 -> Eliminazione Barriere architettoniche | E31: 0 | G31: =IF('Computo-Massimali'!F32<>0,'Computo-Massimali'!G32*E31/'Computo-Massimali'!F32,0) -> 0 | K31: =IF('Computo-Massimali'!F32<>0,'Computo-Massimali'!K32*E31/'Computo-Massimali'!F32,0) -> 0 | Q31: ='Computo-Massimali'!S32 -> 0
C32: ='Computo-Massimali'!C33 -> SismaBonus | E32: 0 | G32: =IF('Computo-Massimali'!F33<>0,'Computo-Massimali'!G33*E32/'Computo-Massimali'!F33,0) -> 0 | H32: 0 | I32: =H32*'Computo-Massimali'!$G$9 -> 0 | J32: 0 | K32: =IF('Computo-Massimali'!F33<>0,'Computo-Massimali'!K33*E32/'Computo-Massimali'!F33,0) -> 0 | L32: 0 | M32: =IF(L32>0,L32/'Computo-Massimali'!L33,0) -> 0 | N32: 0 | Q32: ='Computo-Massimali'!S33 -> 288000
C33: Totali SAL N.2 Superbonus 110 | E33: =E18+E21+SUM(E22:F32) -> 0 | G33: =G18+G21+SUM(G22:G32) -> 0 | H33: =H18+H21+SUM(H22:H32) -> 0 | I33: 0 | J33: 0 | K33: 0 | L33: =L18+L21+SUM(L22:L32) ->  | M33: =IF(L33>0,L33/'Computo-Massimali'!L34,0) ->  | N33: =N18+N21+SUM(N22:N32) -> 198000
K34: =IF(M33>=59.999%,"","SAL Superbonus 110 inferiore 60%") -> 
C35: ='Computo-Massimali'!C36 -> Lavori Ristrutturazione | D35: ='Computo-Massimali'!E36 -> 0 | E35: 0 | G35: =IF('Computo-Massimali'!F36<>0,'Computo-Massimali'!G36*E35/'Computo-Massimali'!F36,0) -> 0 | H35: =SUM(E35:G35) -> 0 | I35: =H35*'Computo-Massimali'!$G$9 -> 0 | J35: =SUM(H35:I35) -> 0 | K35: =IF('Computo-Massimali'!F36<>0,'Computo-Massimali'!K36*E35/'Computo-Massimali'!F36,0) -> 0 | L35: =SUM(J35:K35) -> 0 | M35: =IF(L35>0,L35/'Computo-Massimali'!L36,0) -> 0 | N35: =IF(L35<=Q35*D35,L35*D35,U35*D35) -> 0 | Q35: ='Computo-Massimali'!S36 -> 288000
C36: ='Computo-Massimali'!C37 -> 0 | D36: ='Computo-Massimali'!E37 -> 0 | E36: 0 | G36: =IF('Computo-Massimali'!F37<>0,'Computo-Massimali'!G37*E36/'Computo-Massimali'!F37,0) -> 0 | H36: 0 | I36: =H36*'Computo-Massimali'!$G$9 -> 0 | J36: 0 | K36: =IF('Computo-Massimali'!F37<>0,'Computo-Massimali'!K37*E36/'Computo-Massimali'!F37,0) -> 0 | L36: 0 | M36: =IF(L36>0,L36/'Computo-Massimali'!L37,0) -> 0 | N36: =IF(L36<=Q36*D36,L36*D36,U36*D36) -> 0 | Q36: ='Computo-Massimali'!S37 -> 288000
C37: Totali SAL N.2 - Altri Interventi | E37: =SUM(E35:F36) -> 0 | G37: =SUM(G35:G36) -> 0 | H37: =SUM(H35:H36) -> 0 | I37: =SUM(I35:I36) -> 0 | J37: =SUM(J35:J36) -> 0 | K37: 0 | L37: 0 | M37: =IF(L37>0,L37/'Computo-Massimali'!L38,0) -> 0 | N37: =SUM(N35:N36) -> 0
E39: =E14 -> Importo Lavori Eseguiti | G39: Incidenza Sicurezza | H39: Imponibile | I39: =I14 -> Iva | J39: Importo c.iva | K39: Spese tecniche | L39: Totale | M39: % SAL | N39: Detrazione
C40: Totali SAL N.2 | E40: =E33+E37 -> 0 | G40: =G33+G37 -> 0 | H40: =H33+H37 -> 0 | I40: =I37+I33 -> 0 | J40: =J37+J33 -> 0 | K40: =K37+K33 -> 0 | L40: =SUM(J40:K40) -> 0 | M40: =IF(L40>0,L40/'Computo-Massimali'!L40,0) -> 0 | N40: =N37+N33 -> 198000
C42: =IF(ABS(E13-G40)>0.01,"Oneri/Lavori Sicurezza non imputabili al SAL, per lavori non eseguiti","") ->  | G42: =IF(C42<>"",E13-G40,"") -> 
C43: =IF($C$42<>"","Importo Effettivo Lavori Eseguiti","") ->  | E43: =IF($C$42<>"",E40,"") ->  | G43: =IF($C$42<>"",E13,"") ->  | H43: =IF($C$42<>"",E43+G43,"") ->  | I43: =IF($C$42<>"",H43*G9,"") ->  | J43: =IF($C$42<>"",H43+I43,"") ->  | K43: =IF($C$42<>"",K40,"") ->  | L43: =IF($C$42<>"",J43+K43,"") ->  | M43: =IF($C$42<>"",L43/'Computo-Massimali'!L34,"") ->  | N43: =IF($C$42<>"",L43*1.1,"") -> 

Sheet SAL.Finale
C3: STATO AVANZAMENTO LAVORI Finale | F3: ='Dati Gen'!B28 -> 0 | N3: ='Dati Gen'!I3 -> ©2021 SIM srl - www.madosoft.it
C4: 29/07/2021 | F4: ='Dati Gen'!B29 -> 0 | N4: ='Dati Gen'!I2 -> Pratica.110
E6: Imponibile | G6: %iva | H6: IVA | I6: Importo
C7: ='Computo-Massimali'!C7 -> Importo complessivo Lavori | E7: ='Computo-Massimali'!F7 -> 483318 | G7: ='Computo-Massimali'!G7 -> 0.1 | H7: ='Computo-Massimali'!H7 -> 48331.8 | I7: ='Computo-Massimali'!I7 -> 531649.8
C8: ='Computo-Massimali'!C8 -> di cui Oneri/Lavori x Sicurezza | E8: ='Computo-Massimali'!F8 -> 29675.7252 | G8: ='Computo-Massimali'!G8 -> 0.1 | H8: ='Computo-Massimali'!H8 -> 2967.57252 | I8: ='Computo-Massimali'!I8 -> 32643.29772
C9: ='Computo-Massimali'!C9 -> Importo Lavori al netto della Sicurezza | E9: ='Computo-Massimali'!F9 -> 453642.2748 | G9: ='Computo-Massimali'!G9 -> 0.1 | H9: ='Computo-Massimali'!H9 -> 45364.22748 | I9: ='Computo-Massimali'!I9 -> 499006.5023
C10: ='Computo-Massimali'!C10 -> Spese tecniche (compresa iva) | E10: ='Computo-Massimali'!F10 -> 39824.9 | G10: ='Computo-Massimali'!G10 -> 0 | H10: ='Computo-Massimali'!H10 -> 0 | I10: ='Computo-Massimali'!I10 -> 39824.9
I11: ='Computo-Massimali'!I11 -> 571474.7
C12: Lavori Eseguiti
C13: Oneri/Lavori x Sicurezza | E13: ='Computo-Massimali'!F8 -> 29675.7252
C14: Lavorazione | E14: Importo Lavori Eseguiti | G14: Incidenza Sicurezza | H14: Imponibile | I14: Iva | J14: Importo c.iva | K14: Spese tecniche | L14: Totale | M14: % SAL | N14: Detrazione | Q14: ='Computo-Massimali'!S15 -> Massimale spesa | S14: Ripartizione Spese Tecniche | U14: Fatturare
C15: ='Computo-Massimali'!C16 -> Isolamento pareti perimetrali | E15: ='Computo-Massimali'!F16 -> 0 | G15: =IF('Computo-Massimali'!F16<>0,'Computo-Massimali'!G16*E15/'Computo-Massimali'!F16,0) -> 0 | H15: =SUM(E15:G15) -> 0 | I15: =H15*'Computo-Massimali'!$G$9 -> 0 | J15: =SUM(H15:I15) -> 0 | K15: =IF('Computo-Massimali'!F16<>0,'Computo-Massimali'!K16*E15/'Computo-Massimali'!F16,0) -> 0 | L15: =SUM(J15:K15) -> 0 | M15: =IF(L15>0,L15/'Computo-Massimali'!L16,0) -> 0 | N15: =IF(L15<=Q15,L15*1.1,Q15*1.1) -> 0 | Q15: ='Computo-Massimali'!S16 -> 120000 | S15: =IF('Computo-Massimali'!S3<>0,'Computo-Massimali'!S3,"-") -> Ape Ante | T15: =$K$42*'Computo-Massimali'!AC3/'Computo-Massimali'!$AC$13 -> 210.2652829 | U15: =IF(T15>0,T15-'SAL.30%'!T15-'SAL.60%'!U15,"") -> 210.2652829
C16: ='Computo-Massimali'!C17 -> Isolamento coperture | E16: ='Computo-Massimali'!F17 -> 0 | G16: =IF('Computo-Massimali'!F17<>0,'Computo-Massimali'!G17*E16/'Computo-Massimali'!F17,0) -> 0 | H16: =SUM(E16:G16) -> 0 | I16: =H16*'Computo-Massimali'!$G$9 -> 0 | J16: =SUM(H16:I16) -> 0 | K16: =IF('Computo-Massimali'!F17<>0,'Computo-Massimali'!K17*E16/'Computo-Massimali'!F17,0) -> 0 | L16: =SUM(J16:K16) -> 0 | M16: =IF(L16>0,L16/'Computo-Massimali'!L17,0) -> 0 | N16: 0 | Q16: ='Computo-Massimali'!S17 -> 120000 | S16: =IF('Computo-Massimali'!S4<>0,'Computo-Massimali'!S4,"-") -> Progettazione e DL | T16: =$K$42*'Computo-Massimali'!AC4/'Computo-Massimali'!$AC$13 -> 5440.767563 | U16: =IF(T16>0,T16-'SAL.30%'!T16-'SAL.60%'!U16,"") -> 5440.767563
C17: ='Computo-Massimali'!C18 -> Isolamento Pavimenti | E17: ='Computo-Massimali'!F18 -> 0 | G17: =IF('Computo-Massimali'!F18<>0,'Computo-Massimali'!G18*E17/'Computo-Massimali'!F18,0) -> 0 | H17: 0 | I17: =H17*'Computo-Massimali'!$G$9 -> 0 | J17: 0 | K17: =IF('Computo-Massimali'!F18<>0,'Computo-Massimali'!K18*E17/'Computo-Massimali'!F18,0) -> 0 | L17: 0 | M17: =IF(L17>0,L17/'Computo-Massimali'!L18,0) -> 0 | N17: 0 | Q17: ='Computo-Massimali'!S18 -> 120000 | S17: =IF('Computo-Massimali'!S5<>0,'Computo-Massimali'!S5,"-") -> Coord.SicurezzaEsec. | T17: =$K$42*'Computo-Massimali'!AC5/'Computo-Massimali'!$AC$13 -> 1050.074651 | U17: =IF(T17>0,T17-'SAL.30%'!T17-'SAL.60%'!U17,"") -> 1050.074651
C18: ='Computo-Massimali'!C19 -> Isolamento sup. verticali e/o orizzontali | E18: =SUM(E15:F17) -> 0 | G18: =SUM(G15:G17) -> 0 | H18: =SUM(H15:H17) -> 0 | I18: =SUM(I15:I17) -> 0 | J18: =SUM(J15:J17) -> 0 | K18: =SUM(K15:K17) -> 0 | L18: =IF('Dati Gen'!P17="Versione DEMO","Versione DEMO",SUM(J18:K18)) -> Versione DEMO | M18: =IF(L18>0,L18/'Computo-Massimali'!L19,0) ->  | N18: 132000 | Q18: ='Computo-Massimali'!S19 -> 120000 | S18: =IF('Computo-Massimali'!S6<>0,'Computo-Massimali'!S6,"-") -> Ape Post | T18: =$K$42*'Computo-Massimali'!AC6/'Computo-Massimali'!$AC$13 -> 269.9878649 | U18: =IF(T18>0,T18-'SAL.30%'!T18-'SAL.60%'!U18,"") -> 269.9878649
C19: ='Computo-Massimali'!C20 -> Serramenti | E19: ='Computo-Massimali'!F20 -> 0 | G19: =IF('Computo-Massimali'!F20<>0,'Computo-Massimali'!G20*E19/'Computo-Massimali'!F20,0) -> 0 | H19: 0 | I19: =H19*'Computo-Massimali'!$G$9 -> 0 | J19: 0 | K19: =IF('Computo-Massimali'!F20<>0,'Computo-Massimali'!K20*E19/'Computo-Massimali'!F20,0) -> 0 | L19: 0 | M19: =IF(L19>0,L19/'Computo-Massimali'!L20,0) -> 0 | N19: 0 | Q19: ='Computo-Massimali'!S20 -> 163636.3636 | S19: =IF('Computo-Massimali'!T7<>0,'Computo-Massimali'!T7,"-") -> - | T19: =$K$42*'Computo-Massimali'!AC7/'Computo-Massimali'!$AC$13 -> 0 | U19: =IF(T19>0,T19-'SAL.30%'!T19-'SAL.60%'!U19,"") -> 
C20: ='Computo-Massimali'!C21 -> Serramenti con chiusure oscuranti | E20: ='Computo-Massimali'!F21 -> 0 | G20: =IF('Computo-Massimali'!F21<>0,'Computo-Massimali'!G21*E20/'Computo-Massimali'!F21,0) -> 0 | H20: 0 | I20: =H20*'Computo-Massimali'!$G$9 -> 0 | J20: 0 | K20: =IF('Computo-Massimali'!F21<>0,'Computo-Massimali'!K21*E20/'Computo-Massimali'!F21,0) -> 0 | L20: 0 | M20: =IF(L20>0,L20/'Computo-Massimali'!L21,0) -> 0 | N20: 0 | Q20: ='Computo-Massimali'!S21 -> 163636.3636 | S20: =IF('Computo-Massimali'!T8<>0,'Computo-Massimali'!T8,"-") -> - | T20: =$K$42*'Computo-Massimali'!AC8/'Computo-Massimali'!$AC$13 -> 0 | U20: =IF(T20>0,T20-'SAL.30%'!T20-'SAL.60%'!U20,"") -> 
C21: Serramenti + chiusure oscuranti | E21: =SUM(E19:F20) -> 0 | G21: =SUM(G19:G20) -> 0 | H21: 0 | I21: 0 | J21: 0 | K21: 0 | L21: 0 | M21: =IF(L21>0,L21/'Computo-Massimali'!L23,0) -> 0 | N21: 0 | Q21: ='Computo-Massimali'!S23 -> 163636.3636 | S21: =IF('Computo-Massimali'!T9<>0,'Computo-Massimali'!T9,"-") -> - | T21: =$K$42*'Computo-Massimali'!AC9/'Computo-Massimali'!$AC$13 -> 0 | U21: =IF(T21>0,T21-'SAL.30%'!T21-'SAL.60%'!U21,"") -> 
C22: ='Computo-Massimali'!C23 -> Schermature solari | E22: ='Computo-Massimali'!F23 -> 0 | G22: =IF('Computo-Massimali'!F23<>0,'Computo-Massimali'!G23*E22/'Computo-Massimali'!F23,0) -> 0 | H22: 0 | I22: =H22*'Computo-Massimali'!$G$9 -> 0 | J22: 0 | K22: =IF('Computo-Massimali'!F23<>0,'Computo-Massimali'!K23*E22/'Computo-Massimali'!F23,0) -> 0 | L22: 0 | M22: =IF(L22>0,L22/'Computo-Massimali'!L23,0) -> 0 | N22: 0 | Q22: ='Computo-Massimali'!S23 -> 163636.3636 | S22: =IF('Computo-Massimali'!S12<>0,'Computo-Massimali'!S12,"-") -> Visto Conformità | T22: =$K$42*'Computo-Massimali'!AC12/'Computo-Massimali'!$AC$13 -> 1268.800202 | U22: =IF(T22>0,T22-'SAL.30%'!T22-'SAL.60%'!U22,"") -> 1268.800202
C23: ='Computo-Massimali'!C24 -> Solare Termico - con collettori solari | E23: ='Computo-Massimali'!F24 -> 0 | G23: =IF('Computo-Massimali'!F24<>0,'Computo-Massimali'!G24*E23/'Computo-Massimali'!F24,0) -> 0 | H23: 0 | I23: =H23*'Computo-Massimali'!$G$9 -> 0 | J23: 0 | K23: =IF('Computo-Massimali'!F24<>0,'Computo-Massimali'!K24*E23/'Computo-Massimali'!F24,0) -> 0 | L23: 0 | M23: =IF(L23>0,L23/'Computo-Massimali'!L24,0) -> 0 | N23: 0 | Q23: ='Computo-Massimali'!S24 -> 60000 | T23: =SUM(T15:T22) -> 8239.895563 | U23: =SUM(U15:U22) -> 8239.895563
C24: =MID('Computo-Massimali'!C25,1,28) &" kWp" -> Solare Fotovoltaico kWp | D24: ='Computo-Massimali'!E25 -> 6 | E24: ='Computo-Massimali'!F25 -> 0 | G24: =IF('Computo-Massimali'!F25<>0,'Computo-Massimali'!G25*E24/'Computo-Massimali'!F25,0) -> 0 | H24: 0 | I24: =H24*'Computo-Massimali'!$G$9 -> 0 | J24: 0 | K24: =IF('Computo-Massimali'!F25<>0,'Computo-Massimali'!K25*E24/'Computo-Massimali'!F25,0) -> 0 | L24: 0 | M24: =IF(L24>0,L24/'Computo-Massimali'!L25,0) -> 0 | N24: 0 | Q24: ='Computo-Massimali'!S25 -> 14400
C25: =MID('Computo-Massimali'!C26,1,28) &" kWp" -> Sistema di Accumulo kWp | D25: ='Computo-Massimali'!E26 -> 10 | E25: ='Computo-Massimali'!F26 -> 0 | G25: =IF('Computo-Massimali'!F26<>0,'Computo-Massimali'!G26*E25/'Computo-Massimali'!F26,0) -> 0 | H25: 0 | I25: =H25*'Computo-Massimali'!$G$9 -> 0 | J25: 0 | K25: =IF('Computo-Massimali'!F26<>0,'Computo-Massimali'!K26*E25/'Computo-Massimali'!F26,0) -> 0 | L25: 0 | M25: =IF(L25>0,L25/'Computo-Massimali'!L26,0) -> 0 | N25: 0 | Q25: ='Computo-Massimali'!S26 -> 10000
C26: ='Computo-Massimali'!C27 -> Impianti climatizzazione e ACS | E26: ='Computo-Massimali'!F27 -> 0 | G26: =IF('Computo-Massimali'!F27<>0,'Computo-Massimali'!G27*E26/'Computo-Massimali'!F27,0) -> 0 | H26: 0 | I26: =H26*'Computo-Massimali'!$G$9 -> 0 | J26: 0 | K26: =IF('Computo-Massimali'!F27<>0,'Computo-Massimali'!K27*E26/'Computo-Massimali'!F27,0) -> 0 | L26: =IF('Dati Gen'!P17="Versione DEMO","Versione DEMO",SUM(J26:K26)) -> Versione DEMO | M26: =IF(L26>0,L26/'Computo-Massimali'!L27,0) ->  | N26: 66000 | Q26: ='Computo-Massimali'!S27 -> 60000
C27: ='Computo-Massimali'!C28 -> Sistemi di Microgenerazione | E27: ='Computo-Massimali'!F28 -> 0 | G27: =IF('Computo-Massimali'!F28<>0,'Computo-Massimali'!G28*E27/'Computo-Massimali'!F28,0) -> 0 | H27: =SUM(E27:G27) -> 0 | I27: =H27*'Computo-Massimali'!$G$9 -> 0 | J27: =SUM(H27:I27) -> 0 | K27: =IF('Computo-Massimali'!F28<>0,'Computo-Massimali'!K28*E27/'Computo-Massimali'!F28,0) -> 0 | L27: =IF('Dati Gen'!P18="Versione DEMO","Versione DEMO",SUM(J27:K27)) -> 0 | M27: =IF(L27>0,L27/'Computo-Massimali'!L28,0) -> 0 | N27: 0 | Q27: ='Computo-Massimali'!S28 -> 272727.2727
C28: ='Computo-Massimali'!C29 -> Impianti Biomassa | E28: ='Computo-Massimali'!F29 -> 0 | G28: =IF('Computo-Massimali'!F29<>0,'Computo-Massimali'!G29*E28/'Computo-Massimali'!F29,0) -> 0 | H28: 0 | I28: =H28*'Computo-Massimali'!$G$9 -> 0 | J28: 0 | K28: =IF('Computo-Massimali'!F29<>0,'Computo-Massimali'!K29*E28/'Computo-Massimali'!F29,0) -> 0 | L28: 0 | M28: =IF(L28>0,L28/'Computo-Massimali'!L29,0) -> 0 | N28: 0 | Q28: ='Computo-Massimali'!S29 -> 81818.18182
C29: ='Computo-Massimali'!C30 -> Sistemi di Building Automation | E29: ='Computo-Massimali'!F30 -> 0 | G29: =IF('Computo-Massimali'!F30<>0,'Computo-Massimali'!G30*E29/'Computo-Massimali'!F30,0) -> 0 | H29: 0 | I29: =H29*'Computo-Massimali'!$G$9 -> 0 | J29: 0 | K29: =IF('Computo-Massimali'!F30<>0,'Computo-Massimali'!K30*E29/'Computo-Massimali'!F30,0) -> 0 | L29: 0 | M29: =IF(L29>0,L29/'Computo-Massimali'!L30,0) -> 0 | N29: 0 | Q29: ='Computo-Massimali'!S30 -> 40909.09091
C30: ='Computo-Massimali'!C31 -> Colonnine di Ricarica | E30: ='Computo-Massimali'!F31 -> 0 | G30: =IF('Computo-Massimali'!F31<>0,'Computo-Massimali'!G31*E30/'Computo-Massimali'!F31,0) -> 0 | H30: 0 | I30: =H30*'Computo-Massimali'!$G$9 -> 0 | J30: 0 | K30: =IF('Computo-Massimali'!F31<>0,'Computo-Massimali'!K31*E30/'Computo-Massimali'!F31,0) -> 0 | L30: 0 | M30: =IF(L30>0,L30/'Computo-Massimali'!L31,0) -> 0 | N30: 0 | Q30: ='Computo-Massimali'!S31 -> 4500
C31: ='Computo-Massimali'!C32 -> Eliminazione Barriere architettoniche | E31: ='Computo-Massimali'!F32 -> 93860 | G31: =IF('Computo-Massimali'!F32<>0,'Computo-Massimali'!G32*E31/'Computo-Massimali'!F32,0) -> 6140 | H31: =SUM(E31:G31) -> 100000 | I31: =H31*'Computo-Massimali'!$G$9 -> 10000 | J31: =SUM(H31:I31) -> 110000 | K31: =IF('Computo-Massimali'!F32<>0,'Computo-Massimali'!K32*E31/'Computo-Massimali'!F32,0) -> 8239.895563 | L31: =SUM(J31:K31) -> 118239.8956 | M31: =IF(L31>0,L31/'Computo-Massimali'!L32,0) -> 1 | N31: =IF(L31<=Q31,L31*1.1,Q31*1.1) -> 0 | Q31: ='Computo-Massimali'!S32 -> 0
C32: ='Computo-Massimali'!C33 -> SismaBonus | E32: 0 | G32: =IF('Computo-Massimali'!F33<>0,'Computo-Massimali'!G33*E32/'Computo-Massimali'!F33,0) -> 0 | H32: 0 | I32: =H32*'Computo-Massimali'!$G$9 -> 0 | J32: 0 | K32: =IF('Computo-Massimali'!F33<>0,'Computo-Massimali'!K33*E32/'Computo-Massimali'!F33,0) -> 0 | L32: 0 | M32: =IF(L32>0,L32/'Computo-Massimali'!L33,0) -> 0 | N32: 0 | Q32: ='Computo-Massimali'!S33 -> 288000
C33: Totali SAL FINALE Superbonus 110 | E33: =E18+E21+SUM(E22:F32) -> 93860 | G33: =G18+G21+SUM(G22:G32) -> 6140 | H33: =H18+H21+SUM(H22:H32) -> 100000 | I33: 10000 | J33: 110000 | K33: 8239.895563 | M33: =IF(L33>0,L33/'Computo-Massimali'!L34,0) ->  | N33: =N18+N21+SUM(N22:N32) -> 198000
K34: =IF(M33>=99.999%,"","SAL Superbonus 110 inferiore 100%") -> 
C35: ='Computo-Massimali'!C36 -> Lavori Ristrutturazione | D35: ='Computo-Massimali'!E36 -> 0 | E35: ='Computo-Massimali'!F36 -> 0 | G35: =IF('Computo-Massimali'!F36<>0,'Computo-Massimali'!G36*E35/'Computo-Massimali'!F36,0) -> 0 | H35: =SUM(E35:G35) -> 0 | I35: =H35*'Computo-Massimali'!$G$9 -> 0 | J35: =SUM(H35:I35) -> 0 | K35: =IF('Computo-Massimali'!F36<>0,'Computo-Massimali'!K36*E35/'Computo-Massimali'!F36,0) -> 0 | L35: =SUM(J35:K35) -> 0 | M35: =IF(L35>0,L35/'Computo-Massimali'!L36,0) -> 0 | N35: =IF(L35<=Q35*D35,L35*D35,U35*D35) -> 0 | Q35: ='Computo-Massimali'!S36 -> 288000
C36: ='Computo-Massimali'!C37 -> 0 | D36: ='Computo-Massimali'!E37 -> 0 | E36: ='Computo-Massimali'!F37 -> 0 | G36: =IF('Computo-Massimali'!F37<>0,'Computo-Massimali'!G37*E36/'Computo-Massimali'!F37,0) -> 0 | H36: 0 | I36: =H36*'Computo-Massimali'!$G$9 -> 0 | J36: 0 | K36: =IF('Computo-Massimali'!F37<>0,'Computo-Massimali'!K37*E36/'Computo-Massimali'!F37,0) -> 0 | L36: 0 | M36: =IF(L36>0,L36/'Computo-Massimali'!L37,0) -> 0 | N36: =IF(L36<=Q36*D36,L36*D36,U36*D36) -> 0 | Q36: ='Computo-Massimali'!S37 -> 288000
C37: Totali SAL FINALE - Altri Interventi | E37: =SUM(E35:F36) -> 0 | G37: =SUM(G35:G36) -> 0 | H37: =SUM(H35:H36) -> 0 | I37: =SUM(I35:I36) -> 0 | J37: =SUM(J35:J36) -> 0 | K37: 0 | L37: 0 | M37: =IF(L37>0,L37/'Computo-Massimali'!L38,0) -> 0 | N37: =SUM(N35:N36) -> 0
E39: =E14 -> Importo Lavori Eseguiti | G39: Incidenza Sicurezza | H39: Imponibile | I39: =I14 -> Iva | J39: Importo c.iva | K39: Spese tecniche | L39: Totale | M39: % SAL | N39: Detrazione
C40: ='SAL.30%'!C40 -> Totali SAL N.1 | E40: ='SAL.30%'!E40 -> 46563.75 | G40: ='SAL.30%'!G40 -> 0 | H40: ='SAL.30%'!H40 -> 46563.75 | I40: ='SAL.30%'!I40 -> 4656.375 | J40: ='SAL.30%'!J40 -> 51220.125 | K40: ='SAL.30%'!K40 -> 0 | L40: ='SAL.30%'!L40 -> 51220.125 | M40: ='SAL.30%'!M40 -> 0.08962798472 | N40: ='SAL.30%'!N40 -> 210489.3285
C41: ='SAL.60%'!C40 -> Totali SAL N.2 | E41: ='SAL.60%'!E40 -> 0 | G41: ='SAL.60%'!G40 -> 0 | H41: ='SAL.60%'!H40 -> 0 | I41: ='SAL.60%'!I40 -> 0 | J41: ='SAL.60%'!J40 -> 0 | K41: ='SAL.60%'!K40 -> 0 | L41: ='SAL.60%'!L40 -> 0 | M41: ='SAL.60%'!M40 -> 0 | N41: ='SAL.60%'!N40 -> 198000
C42: Totali SAL Finale | E42: =E33+E37 -> 93860 | G42: =G33+G37 -> 6140 | H42: =H33+H37 -> 100000 | I42: =I37+I33 -> 10000 | J42: =J37+J33 -> 110000 | K42: =K37+K33 -> 8239.895563 | L42: =L37+L33 ->  | M42: =IF(E9<>0,E42/E9,0) -> 0.2069031155 | N42: =N37+N33 -> 198000
C44: =IF(ABS(E13-G42)>0.01,"Oneri/Lavori Sicurezza non imputabili al SAL, per lavori non eseguiti","") -> Oneri/Lavori Sicurezza non imputabili al SAL, per lavori non eseguiti | G44: =IF(C44<>"",E13-G42,"") -> 23535.7252 | M44: Quota a carico cliente :
C45: =IF($C$44<>"","Importo Effettivo Lavori Eseguiti","") -> Importo Effettivo Lavori Eseguiti | E45: =IF($C$44<>"",E42,"") -> 93860 | G45: =IF($C$44<>"",E13,"") -> 29675.7252 | H45: =IF($C$44<>"",E45+G45,"") -> 123535.7252 | I45: =IF($C$44<>"",H45*G9,"") -> 12353.57252 | J45: =IF($C$44<>"",H45+I45,"") -> 135889.2977 | K45: =IF($C$44<>"",K42,"") -> 8239.895563 | L45: =IF($C$44<>"",J45+K45,"") -> 144129.1933 | M45: =IF($C$44<>"",L45/'Computo-Massimali'!L40,"") -> 0.2522057323 | N45: =IF($C$44<>"",L45*1.1,"") -> 158542.1126

Sheet Pratica ENEA
B2: Tipologia Edificio | C2: ='Dati Gen'!B5 -> Condominio | M2: https://detrazionifiscali.enea.it/creaasseverazione.asp | Y2: =NomeApp -> Pratica.110 | Z2: ='Dati Gen'!J2 -> Versione | AA2: ='Dati Gen'!K2 -> 1.9
B3: Data Inizio Lavori | C3: ='Dati Gen'!C31 -> 00:00:00 | Y3: ='Dati Gen'!I3 -> ©2021 SIM srl - www.madosoft.it
B4: Comune Ubicazione | C4: ='Dati Gen'!C8 -> 0
B5: Comune Montano | C5: X | D5: SI | F5: NO | G5: Elenco Comuni Montani
B6: Interessato Infrazione | D6: SI | E6: X | F6: NO | G6: Elenco Comuni Infrazioni
B7: Intervento comma 4-Ter | D7: SI | E7: X | F7: NO | G7: 160% Zone Terremotate
B8: Indirizzo | C8: ='Dati Gen'!C9 -> 0 | I8: N.Civico | J8: ='Dati Gen'!K9 -> 0 | K8: CAP | L8: ='Dati Gen'!K8 -> 0
B9: Anno di Costruzione Immobile | C9: ='Dati Gen'!C11 -> 0 | G9: ='Dati Gen'!F11 -> Superficie Totale Disperdente : | L9: ='Dati Gen'!K11 -> 0 | W9: Totali Progetto
B10: Edificio in area Metanizzata | C10: X | D10: SI | F10: NO | W10: Spese previste in progetto | AA10: =AA20+AA27 -> 0
B11: Autorizzazione Edilizia | C11: ='Dati Gen'!C12 -> Licenza Edilizia / Titolo Edilizio | I11: ='Dati Gen'!H12 -> N. | J11: ='Dati Gen'!I12 -> 0 | K11: ='Dati Gen'!J12 -> Data | L11: ='Dati Gen'!K12 -> 00:00:00 | W11: Spese Ammissibili | AA11: =AA21+AA28 -> 0
B12: ='Dati Gen'!B33 -> Relazione ex Legge 10/91 Depositata al Comune in Data | H12: =IF('Dati Gen'!G33<>"",'Dati Gen'!G33,"") ->  | J12: Prot. N. | L12: =IF('Dati Gen'!K33<>"",'Dati Gen'!K33,"") ->  | W12: Realizzati | Y12: SAL 30% | Z12: SAL 60% | AA12: SAL FINALE
W13: Costo Lavori Realizzati | Y13: =Y23+Y30 -> 
B14: INTERVENTI TRAINANTI | W14: di cui ammessi | Y14: 0 | Z14: 0 | AA14: 0
B16: intervento di isolamento termico delle superfici opache verticali, orizzontali e inclinate
B17: Descrizione | G17: Superficie mq | H17: Trasm. Ante | I17: Trasm. Post | J17: Trasm.P. YIE | K17: Confine | L17: Coiben-tazione | M17: Realizzati mq
M18: SAL.30% | N18: SAL.60% | O18: SAL.FIN.
B19: Pareti Verticali in Blocchi di Tufo da 50cm | G19: 22.58 | H19: 0.8914 | I19: 0.2236 | J19: 0.01 | K19: Esterno | L19: Esterna | M19: 22.58 | W19: Totali Interventi Trainanti
B20: Pareti Verticali in mattoni pieni da 30cm | G20: 123.7 | H20: 1.839 | I20: 0.252 | J20: 0.0173 | K20: Esterno | L20: Esterna | M20: 123.7 | W20: Spese previste in progetto | AA20: =J33+J64 -> 0
B21: Pareti Verticali in blocchi di cemento da 30cm | G21: 22.88 | H21: 1.3285 | I21: 0.291 | J21: 0.0197 | K21: Esterno | L21: Esterna | M21: 22.88 | W21: Spese Ammissibili | AA21: =J34+J65 -> 0
B22: Coperture Legno | G22: 76.14 | H22: 2.1352 | I22: 0.2191 | J22: 0.0838 | K22: Esterno | L22: Esterna | M22: 76.14 | W22: Realizzati | Y22: SAL 30% | Z22: SAL 60% | AA22: SAL FINALE
B23: Coperture Acciaio | G23: 16.48 | H23: 2.2898 | I23: 0.2166 | J23: 0.0498 | K23: Esterno | L23: Esterna | M23: 16.48 | W23: Costo Lavori Realizzati | Y23: =F36+F67 ->  | Z23: =H36+H67 ->  | AA23: =J36+J67 -> 
W24: di cui ammessi | Y24: 0 | Z24: =H37+H68 -> 0 | AA24: =J37+J68 -> 0
K25: - | L25: -
K26: - | L26: - | W26: Totali Interventi Trainati
K27: - | L27: - | W27: Spese previste in progetto | AA27: =J87+J103+J133+J144+J154+J164+J179+J192+J204 -> 0
K28: - | L28: - | W28: Spese Ammissibili | AA28: =J88+J104+J134+J145+J155+J165+J180+J193+J205 -> 0
K29: - | L29: - | W29: Realizzati | Y29: SAL 30% | Z29: SAL 60% | AA29: SAL FINALE
W30: Costo Lavori Realizzati | Y30: =F90+F106+F167+F182+F195+F207 -> 9536.23 | Z30: =H90+H106+H167+H182+H195+H207 -> 0 | AA30: =J90+J106+J167+J182+J195+J207 -> 0
B31: Superficie Totale disperdente oggetto di intervento [mq] | J31: =SUM(G19:G29) -> 261.78 | W31: di cui ammessi | Y31: 0 | Z31: =H91+H107+H168+H183+H196+H208 -> 0 | AA31: =J91+J107+J168+J183+J196+J208 -> 0
B32: Spesa Massima Ammissibile | J32: ='SAL.30%'!Q18 -> 120000
B33: Costo Complessivo Previsto in progetto | J33: ='Computo-Massimali'!L19 -> 0
B34: Spesa Ammessa | J34: =IF(J33<J32,J33,J32) -> 0
F35: SAL 30% | H35: SAL 60% | J35: SAL FINALE
B36: Costo Lavori Realizzati | F36: ='SAL.30%'!L18 -> Versione DEMO | H36: ='SAL.60%'!L18 -> Versione DEMO | J36: =SAL.Finale!L18 -> Versione DEMO
B37: di cui ammessi | F37: =IF(F36<$J$34,F36,$J$34) -> 0 | H37: =IF(H36<$J$34,H36,$J$34) -> 0 | J37: =IF(J36<$J$34,J36,$J$34) -> 0
B38: Risparmio di energia primaria non rinnovabile di progetto [kWh/anno] | J38: 10885
B41: Intervento di sostituzione degli impianti di climatizzazione invernale esistenti
B42: Descrizione Nuovo Impianto | G42: Tipo Sostituito | H42: P.Nom Sostituito | I42: P.Nom kW | J42: Rendim Util Nomin. 100% | K42: Destinata | L42: Efficienza Riscaldam. hs | M42: Efficienza ACS hw | N42: Tipo Aliment. | O42: Classe Dispositivo Termoreg. Evoluto | P42: Tipo PDC | Q42: Pot. El. Assorb kW | R42: COP | S42: Superfic. Risc. Da PDC | V42: Descrizione Impianto
P43: - | V43: -
G44: - | K44: - | N44: - | O44: - | P44: - | V44: CC) Caldaie a condensazione
G45: - | K45: - | N45: - | O45: - | P45: - | V45: PC) Pompe di calore (PDC) a compressione di vapore elettriche anche sonde geotermiche
G46: - | K46: - | N46: - | O46: - | P46: - | V46: PCA) Pompe di calore a gas ad assorbimento o a compressione di vapore azionate da motore primo
G47: - | K47: - | N47: - | O47: - | P47: - | V47: CO) Sistemi microcogenerazione
G48: - | K48: - | N48: - | O48: - | P48: - | V48: SA) Installazione di scaldacqua a pompa di calore in sostituzione di un sistema di produzione di acqua calda quando avviene con lo stesso generatore di calore destinato alla climatizzazione invernale ai sensi delle lettere b) e c) del comma 1 dell’articolo 119 del Decreto Rilancio
G49: - | K49: - | N49: - | O49: - | P49: - | V49: ST) Collettori solari
G50: - | K50: - | N50: - | O50: - | P50: - | V50: TR) Teleriscaldamento (esclusivamente per i comuni montani non interessati dalle procedure di infrazione comunitaria n. 2014/2147 del 10 luglio 2014 o n. 2015/2043 del 28 maggio 2015 per la non ottemperanza dell’Italia agli obblighi previsti dalla direttiva 2008/50/CE, l’allaccio a sistemi di teleriscaldamento efficiente ai sensi dell’articolo 2, comma 2, lettera tt), del decreto legislativo 4 luglio 2014, n. 102)
B52: SI) Sistemi Ibridi | G52: Tipo Sostituito | H52: P.Nom Sostituito | I52: Caldaia a Condensazione | M52: Pompa di Calore
I53: P.Nom kW | J53: Rendim Nomin. 100% | K53: Efficienza Riscaldam. hs | L53: Tipo Aliment. | M53: Tipo PDC | N53: Tipo Roof Top | O53: P.Nom kW | P53: Pot. El. Assorb kW | Q53: COP | R53: Inverter | S53: Sonde Geotermiche | V53: Tipo Sostituito
F54: 1 | G54: Generatori di Aria Calda | H54: 21.52 | I54: 22 | J54: 107.3 | K54: 0.99 | L54: Gas Naturale (metano) | M54: Aria/Acqua | N54: NO | O54: 6.4 | P54: 1.3 | Q54: 5 | R54: SI | S54: NO | V54: -
F55: 2 | G55: - | L55: - | M55: - | N55: - | R55: - | S55: - | V55: Caldaia Standard
F56: 3 | G56: - | L56: - | M56: - | N56: - | R56: - | S56: - | V56: Caldaia Bassa Temperatura
F57: 4 | G57: - | L57: - | M57: - | N57: - | R57: - | S57: - | V57: Caldaia a Condensazione Gas
V58: Caldaia Condens.Gasolio
B59: Destinati a : Climatizzazione Invernale | G59: x | V59: Pompa di Calore anche con sonda geotermica
B60: Climatizzazione estiva | V60: Generatori di Aria Calda
B61: prod. di acqua calda sanitaria | G61: x | V61: Teleriscaldamento (solo in caso di distacco obbligato)
V62: Impianto a biomassa
B63: Spesa Massima Ammissibile | J63: ='Computo-Massimali'!S27 -> 60000 | V63: Altro
B64: Costo Complessivo Previsto in progetto | J64: ='Computo-Massimali'!L27 -> 0
B65: Spesa Ammessa | J65: =IF(J64<J63,J64,J63) -> 0
F66: SAL 30% | H66: SAL 60% | J66: SAL FINALE
B67: Costo Lavori Realizzati | F67: ='SAL.30%'!L26 -> Versione DEMO | H67: ='SAL.60%'!L26 -> Versione DEMO | J67: =SAL.Finale!L26 -> Versione DEMO
B68: di cui ammessi | F68: =IF(F67<$J$65,F67,$J$65) -> 0 | H68: =IF(H67<$J$65,H67,$J$65) -> 0 | J68: =IF(J67<$J$65,J67,$J$65) -> 0
B69: Risparmio di energia primaria non rinnovabile di progetto [kWh/anno] | J69: 3544
B74: INTERVENTI TRAINATI
B76: Sostituzione degli infissi
B77: Descrizione | G77: Telaio Prima | H77: Vetro Prima | J77: Trasm. Ante | K77: Superfice mq | L77: Telaio Dopo | M77: Vetro Dopo | O77: Trasm. Post | P77: Chius. Oscura
B78: Infissi in Legno 1 Anta Vetro Singolo con 1A2V | G78: Legno | H78: Singolo | J78: =4.14 -> 4.14 | K78: =0.7*0.95+0.65*1.15+0.9 -> 2.3125 | L78: Legno | M78: Doppio | O78: 1.56 | P78: X | V78: =IF(P78<>"",1,0) -> 1
B79: Porte Ingresso | G79: Legno | H79: Nessuno | J79: 5.15 | K79: =0.9*2.3+1.15*2.2+2 -> 6.6 | L79: Legno | M79: Nessuno | O79: 1.6 | V79: 0
V80: 0
G81: - | H81: - | L81: - | M81: - | V81: 0
G82: - | H82: - | L82: - | M82: - | V82: 0
G83: - | H83: - | L83: - | M83: - | V83: 0
G84: - | H84: - | L84: - | M84: - | V84: 0
V85: =SUM(V78:V84) -> 1
B86: Spesa Massima Ammissibile | J86: =IF(V85>0,'Computo-Massimali'!S21,'Computo-Massimali'!S20) -> 163636.3636
B87: Costo Complessivo Previsto in progetto | J87: =IF(V85>0,'Computo-Massimali'!L21,'Computo-Massimali'!L20) -> 0
B88: Spesa Ammessa | J88: =IF(J87<J86,J87,J86) -> 0
F89: SAL 30% | H89: SAL 60% | J89: SAL FINALE
B90: Costo Lavori Realizzati | F90: =IF(V85>0,'SAL.30%'!L20,'SAL.30%'!L19) -> 1748.23 | H90: =IF(V85>0,'SAL.60%'!L20,'SAL.60%'!L19) -> 0 | J90: =IF(V85>0,SAL.Finale!L20,SAL.Finale!L19) -> 0
B91: di cui ammessi | F91: =IF(F90<$J$88,F90,$J$88) -> 0 | H91: =IF(H90<$J$88,H90,$J$88) -> 0 | J91: =IF(J90<$J$88,J90,$J$88) -> 0
B92: Risparmio di energia primaria non rinnovabile di progetto [kWh/anno] | J92: 485.6
B94: Schermature solari e chiusure oscuranti
B95: Descrizione | G95: Tipo Schermatura | H95: Installazione | J95: Superf. Schermatura | K95: Superfice finestra protetta | L95: Resistenza term. suppl m2K/W | M95: Orientamento | N95: Tipo Calcolo | P95: gtot | Q95: Materiale schermatura | S95: Meccan. Regolaz.
G96: - | H96: - | M96: - | N96: - | Q96: - | S96: -
G97: - | H97: - | M97: - | N97: - | Q97: - | S97: -
G98: - | H98: - | M98: - | N98: - | Q98: - | S98: -
G99: - | H99: - | M99: - | N99: - | Q99: - | S99: -
G100: - | H100: - | M100: - | N100: - | Q100: - | S100: -
B102: Spesa Massima Ammissibile | J102: ='Computo-Massimali'!S23 -> 163636.3636
B103: Costo Complessivo Previsto in progetto | J103: ='Computo-Massimali'!L23 -> 0
B104: Spesa Ammessa | J104: =IF(J103<J102,J103,J102) -> 0
F105: SAL 30% | H105: SAL 60% | J105: SAL FINALE
B106: Costo Lavori Realizzati | F106: ='SAL.30%'!L22 -> 0 | H106: ='SAL.60%'!L22 -> 0 | J106: =SAL.Finale!L22 -> 0
B107: di cui ammessi | F107: =IF(F106<$J$104,F106,$J$104) -> 0 | H107: =IF(H106<$J$104,H106,$J$104) -> 0 | J107: =IF(J106<$J$104,J106,$J$104) -> 0
B108: Risparmio di energia primaria non rinnovabile di progetto [kWh/anno]
B111: Impianti a)
B112: CC) Caldaie a condensazione | G112: Tipo Sostituito | H112: P.Nom Sostituito | I112: P.Nom kW | J112: Rendim Util Nomin. 100% | K112: Destinata | L112: Efficienza Riscaldam. hs | M112: Efficienza ACS hw | N112: Tipo Aliment. | O112: Classe Dispositivo Termoreg. Evoluto
G113: - | K113: - | N113: - | O113: -
G114: - | K114: - | N114: - | O114: -
B116: GA) Generatori di aria calda a condensazione | G116: Tipo Sostituito | H116: P.Nom Sostituito | I116: P.Nom kW | J116: Rendim Util Nomin. 100% | K116: Tipo Aliment.
G117: - | K117: -
G118: - | K118: -
B120: PC) Pompe di calore (PDC) a compressione di vapore elettriche anche sonde geotermiche | G120: Tipo Sostituito | H120: P.Nom Sostituito | I120: Tipo PDC | J120: Tipo Roof Top | K120: P.Nom kW | L120: Pot. El. Assorb kW | M120: Inverter | N120: COP | O120: Reversibile | P120: Sonde Geotermiche | Q120: Sup. Riscald. dalla PDC
G121: - | I121: - | J121: - | M121: - | O121: - | P121: -
G122: - | I122: - | J122: - | M122: - | O122: - | P122: -
B124: PCA) Pompe di calore a gas ad assorbimento o a compressione di vapore azionate da motore primo | G124: Tipo Sostituito | H124: P.Nom Sostituito | I124: Tipo PDC | J124: Tipo Roof Top | K124: P.Nom kW | L124: Inverter | M124: GUEh | N124: Reversibile | O124: GUEc | P124: Sup. Riscald. Dalla PDC
G125: - | I125: - | J125: - | L125: - | N125: -
G126: - | I126: - | J126: - | L126: - | N126: -
B128: SA) Scaldacqua a pompa di calore | G128: Tipo Sostituito | H128: Pu. scald. sostituito kW | I128: Pu. scald. PDC kW | J128: COP nuovo scald. | K128: Capacità accumulo litri
G129: -
G130: -
B132: Spesa Massima Ammissibile per Impianti a) | J132: =27272*N_Uimm -> 81816
B133: Spese Previste in progetto per Impianti a) | J133: 0
B134: Spesa Ammessa | J134: =IF(J133<J132,J133,J132) -> 0
B135: Risparmio di energia primaria non rinnovabile di progetto [kWh/anno]
B139: CO) Sistemi microcogenerazione | G139: Tipo Sostituito | H139: P.Nom Sostituito | I139: Pot. Elettr. kW | J139: Pot. Immes. kW | K139: Pot. Term. Rec. kW | L139: PES % | M139: Tipo Aliment. | N139: Tipo Intervent | O139: a Celle Combust. | P139: Riscaldatore Supplement. | Q139: P.Risc. Supp kW | R139: Efficienz hs % | S139: Classe Energet
G140: - | M140: - | N140: - | O140: - | P140: - | S140: -
G141: - | M141: - | N141: - | O141: - | P141: - | S141: -
B143: Spesa Massima Ammissibile per CO) Sistemi Microgenerazione | J143: =90909*N_Uimm -> 272727
B144: Spese Previste in progetto per CO) Microgenerazione | J144: 0
B145: Spesa Ammessa | J145: =IF(J144<J143,J144,J143) -> 0
B146: Risparmio di energia primaria non rinnovabile di progetto [kWh/anno]
B149: IB) Generatori a biomassa installazione, di impianti di climatizzazione invernale dotati di generatori di calore alimentati da biomasse combustibili | G149: Tipo Sostituito | H149: P.Nom Sostituito | I149: Classe Gener. re | J149: Tipo Generatore | L149: Impianto destinato a | M149: Tipo Aliment. | N149: P.u. kW | O149: P. al focolare kW | P149: Rendimento a P. nom. | Q149: Sup. Riscald mq | V149: Tipo Generatore
G150: - | I150: - | L150: - | M150: - | V150: -
G151: - | I151: - | L151: - | M151: - | V151: Caldaia
V152: Stufe
B153: Spesa Massima Ammissibile per IB) Generatori a biomassa | J153: =27272*N_Uimm -> 81816 | V153: Camini
B154: Spese Previste in progetto per IB) Generatori a biomassa | J154: 0 | V154: Termostufe
B155: Spesa Ammessa | J155: =IF(J154<J153,J154,J153) -> 0 | V155: Cucine a legna
B156: Risparmio di energia primaria non rinnovabile di progetto [kWh/anno]
B159: BA) Building Automation | G159: Controllo Climatizzaz. Invernale | H159: Controllo Climatizz. Estiva | I159: Controllo ACS | J159: Classe Sistema Esistente | L159: Classe Sistema Dopo interv. | M159: Superfici Ambienti Contr.
G160: SI | H160: NO | I160: SI | J160: D (Assenza di sistema automazione) | L160: A | M160: 85
G161: - | H161: - | I161: - | L161: -
B163: Spesa Massima Ammissibile per BA) Building Automation | J163: =13636*N_Uimm -> 40908
B164: Spese Previste in progetto per BA) Building Automation | J164: ='Computo-Massimali'!L30 -> 0
B165: Spesa Ammessa | J165: =IF(J164<J163,J164,J163) -> 0
F166: SAL 30% | H166: SAL 60% | J166: SAL FINALE
B167: Costo Lavori Realizzati | F167: ='SAL.30%'!L29 -> 0 | H167: ='SAL.60%'!L29 -> 0 | J167: =SAL.Finale!L29 -> 0
B168: di cui ammessi | F168: =IF(F167<$J$165,F167,$J$165) -> 0 | H168: =IF(H167<$J$165,H167,$J$165) -> 0 | J168: =IF(J167<$J$165,J167,$J$165) -> 0
B169: Risparmio di energia primaria non rinnovabile di progetto [kWh/anno] | J169: 407
B174: ST) Collettori Solari | G174: Sup lorda Ag singolo modulo | H174: N. di moduli | I174: S.tot | J174: Tipo di colllettori | K174: Tipo di installazione | L174: Inclinaz. % | M174: Orientamento | N174: Factory Made | O174: Qcol / Qsol kWht oppure QL MJ | P174: Accumulo litri | Q174: Dest. Calore | R174: Solar Keymrk | S174: Tipo impianto sost.
G175: 2.52 | H175: 2 | I175: =G175*H175 -> 5.04 | J175: Piani Vetrati | K175: Tetto a Falda | L175: 0.3 | M175: sud-est | N175: SI | O175: 1210 | P175: 410 | Q175: Produzione ACS e RISC | R175: SI | S175: Boiler elettrico
I176: =G176*H176 -> 0 | J176: - | K176: - | M176: - | N176: - | Q176: - | R176: - | S176: -
B178: Spesa Massima Ammissibile per ST) Collettori Solari | J178: =54545*N_Uimm -> 163635
B179: Spese Previste in progetto per ST) Collettori Solari | J179: ='Computo-Massimali'!L24 -> 0
B180: Spesa Ammessa | J180: =IF(J179<J178,J179,J178) -> 0
F181: SAL 30% | H181: SAL 60% | J181: SAL FINALE
B182: Costo Lavori Realizzati | F182: ='SAL.30%'!L23 -> 0 | H182: ='SAL.60%'!L23 -> 0 | J182: =SAL.Finale!L23 -> 0
B183: di cui ammessi | F183: =IF(F182<$J$180,F182,$J$180) -> 0 | H183: =IF(H182<$J$180,H182,$J$180) -> 0 | J183: =IF(J182<$J$180,J182,$J$180) -> 0
B184: Risparmio di energia primaria non rinnovabile di progetto [kWh/anno]
B187: FV) Fotovoltaico | G187: Codice POD | I187: Potenza Picco kW
G188: IT001E929072154 | I188: 6
B191: Spesa Massima Ammissibile per FV) Fotovoltaico | J191: ='Computo-Massimali'!S25 -> 14400
B192: Spese Previste in progetto per FV) Fotovoltaico | J192: ='Computo-Massimali'!L25 -> 0
B193: Spesa Ammessa | J193: =IF(J192<J191,J192,J191) -> 0
F194: SAL 30% | H194: SAL 60% | J194: SAL FINALE
B195: Costo Lavori Realizzati | F195: ='SAL.30%'!L24 -> 7788 | H195: ='SAL.60%'!L24 -> 0 | J195: =SAL.Finale!L24 -> 0
B196: di cui ammessi | F196: =IF(F195<$J$193,F195,$J$193) -> 0 | H196: =IF(H195<$J$193,H195,$J$193) -> 0 | J196: =IF(J195<$J$193,J195,$J$193) -> 0
B199: AC) Sistema di Accumulo | G199: Capacità kWh
G200: 10
B203: Spesa Massima Ammissibile perAC) Sistema di Accumulo | J203: ='Computo-Massimali'!S26 -> 10000
B204: Spese Previste in progetto per AC) Sistema di Accumulo | J204: ='Computo-Massimali'!L26 -> 0
B205: Spesa Ammessa | J205: =IF(J204<J203,J204,J203) -> 0
F206: SAL 30% | H206: SAL 60% | J206: SAL FINALE
B207: Costo Lavori Realizzati | F207: ='SAL.30%'!L25 -> 0 | H207: ='SAL.60%'!L25 -> 0 | J207: =SAL.Finale!L25 -> 0
B208: di cui ammessi | F208: =IF(F207<$J$205,F207,$J$205) -> 0 | H208: =IF(H207<$J$205,H207,$J$205) -> 0 | J208: =IF(J207<$J$205,J207,$J$205) -> 0

Sheet Fatture
B2: =CONCATENATE('SAL.30%'!C3," del ",'SAL.30%'!C4) -> STATO AVANZAMENTO LAVORI N.1 del 26/06/2021 | J2: =B2 -> STATO AVANZAMENTO LAVORI N.1 del 26/06/2021
B3: FATTURA x SUPERBONUS 110% | J3: FATTURA x LAVORI RISTRUTTURAZIONE
B4: Descrizione | C4: Imponibile | D4: Aliq.Iva | E4: Iva | F4: Importo | H4: Ecced.Max Spesa | J4: Descrizione | K4: Imponibile | L4: Aliq.Iva | M4: Iva | N4: Importo
B5: ='SAL.30%'!C18 -> Isolamento sup. verticali e/o orizzontali | C5: ='SAL.30%'!H18 -> 34259.04 | D5: 0.1 | E5: =C5*D5 -> 3425.904 | F5: =C5+E5 -> 37684.944 | H5: =IF('SAL.30%'!L18>'SAL.30%'!Q18,'SAL.30%'!Q18-'SAL.30%'!L18,0) ->  | J5: ='SAL.30%'!C35 -> Lavori Ristrutturazione | K5: ='SAL.30%'!H35 -> 3635.41 | L5: 0.1 | M5: =K5*L5 -> 363.541 | N5: =K5+M5 -> 3998.951
B6: ='SAL.30%'!C21 -> Serramenti + chiusure oscuranti | C6: ='SAL.30%'!H21 -> 1589.3 | D6: 0.1 | E6: =C6*D6 -> 158.93 | F6: =C6+E6 -> 1748.23 | H6: =IF('SAL.30%'!L21>'SAL.30%'!Q21,'SAL.30%'!Q21-'SAL.30%'!L21,0) -> 0 | J6: ='SAL.30%'!C36 -> 0 | K6: ='SAL.30%'!H36 -> 0 | L6: 0.1 | M6: =K6*L6 -> 0 | N6: =K6+M6 -> 0
B7: ='SAL.30%'!C22 -> Schermature solari | C7: ='SAL.30%'!H22 -> 0 | D7: 0.1 | E7: =C7*D7 -> 0 | F7: =C7+E7 -> 0 | H7: =IF('SAL.30%'!L22>'SAL.30%'!Q22,'SAL.30%'!Q22-'SAL.30%'!L22,0) -> 0 | J7: =CONCATENATE("Spese Tecniche x ",J5) -> Spese Tecniche x Lavori Ristrutturazione | K7: ='SAL.30%'!K35/(1+L7) -> 0 | L7: 0.22 | M7: =K7*L7 -> 0 | N7: =M7+K7 -> 0
B8: ='SAL.30%'!C23 -> Solare Termico - con collettori solari | C8: ='SAL.30%'!H23 -> 0 | D8: 0.1 | E8: 0 | F8: 0 | H8: =IF('SAL.30%'!L23>'SAL.30%'!Q23,'SAL.30%'!Q23-'SAL.30%'!L23,0) -> 0 | J8: =CONCATENATE("Spese Tecniche x ",J6) -> Spese Tecniche x 0 | K8: ='SAL.30%'!K36/(1+L8) -> 0 | L8: 0.22 | M8: =K8*L8 -> 0 | N8: =M8+K8 -> 0
B9: ='SAL.30%'!C24 -> Solare Fotovoltaico kWp | C9: ='SAL.30%'!H24 -> 7080 | D9: 0.1 | E9: 708 | F9: 7788 | H9: =IF('SAL.30%'!L24>'SAL.30%'!Q24,'SAL.30%'!Q24-'SAL.30%'!L24,0) -> 0
B10: ='SAL.30%'!C25 -> Sistema di Accumulo kWh | C10: ='SAL.30%'!H25 -> 0 | D10: 0.1 | E10: 0 | F10: 0 | H10: =IF('SAL.30%'!L25>'SAL.30%'!Q25,'SAL.30%'!Q25-'SAL.30%'!L25,0) -> 0 | M10: Oneri Attualizzazione Credito / Quota Sconto | N10: ='SAL.30%'!N37*(1-'Computo-Massimali'!H44) -> 249.9344375
B11: ='SAL.30%'!C26 -> Impianti climatizzazione e ACS | C11: ='SAL.30%'!H26 -> 0 | D11: 0.1 | E11: 0 | F11: 0 | H11: =IF('SAL.30%'!L26>'SAL.30%'!Q26,'SAL.30%'!Q26-'SAL.30%'!L26,0) -> 
B12: ='SAL.30%'!C27 -> Sistemi di Microgenerazione | C12: ='SAL.30%'!H27 -> 0 | D12: 0.1 | E12: 0 | F12: 0 | H12: =IF('SAL.30%'!L27>'SAL.30%'!Q27,'SAL.30%'!Q27-'SAL.30%'!L27,0) -> 0 | M12: Totale Imponibile | N12: =SUM(K5:K8) -> 3635.41
B13: ='SAL.30%'!C28 -> Impianti Biomassa | C13: ='SAL.30%'!H28 -> 0 | D13: 0.1 | E13: 0 | F13: 0 | H13: =IF('SAL.30%'!L28>'SAL.30%'!Q28,'SAL.30%'!Q28-'SAL.30%'!L28,0) -> 0 | M13: Totale IVA | N13: =SUM(M5:M8) -> 363.541
B14: ='SAL.30%'!C29 -> Sistemi di Building Automation | C14: ='SAL.30%'!H29 -> 0 | D14: 0.1 | E14: 0 | F14: 0 | H14: =IF('SAL.30%'!L29>'SAL.30%'!Q29,'SAL.30%'!Q29-'SAL.30%'!L29,0) -> 0 | M14: Totale Fattura | N14: =SUM(N5:N8) -> 3998.951
B15: ='SAL.30%'!C30 -> Colonnine di Ricarica | C15: ='SAL.30%'!H30 -> 0 | D15: 0.1 | E15: 0 | F15: 0 | H15: =IF('SAL.30%'!L30>'SAL.30%'!Q30,'SAL.30%'!Q30-'SAL.30%'!L30,0) -> 0 | M15: Sconto in Fattura | N15: =-'SAL.30%'!N37+N10 -> -1749.541062
B16: ='SAL.30%'!C31 -> Eliminazione Barriere architettoniche | C16: ='SAL.30%'!H31 -> 0 | D16: 0.1 | E16: 0 | F16: 0 | H16: =IF('SAL.30%'!L31>'SAL.30%'!Q31,'SAL.30%'!Q31-'SAL.30%'!L31,0) -> 0 | M16: Netto a Pagare | N16: =N14+N15 -> 2249.409938
B17: ='SAL.30%'!C32 -> SismaBonus | C17: ='SAL.30%'!H32 -> 0 | D17: 0.1 | E17: 0 | F17: 0 | H17: =IF('SAL.30%'!L32>'SAL.30%'!Q32,'SAL.30%'!Q32-'SAL.30%'!L32,0) -> 0
B18: =CONCATENATE("Spese Tecniche x ",B5) -> Spese Tecniche x Isolamento sup. verticali e/o orizzontali | C18: ='SAL.30%'!K18/(1+D18) -> 0 | D18: 0.22 | E18: 0 | F18: =E18+C18 -> 0
B19: Spese Tecniche x Serramenti + chiusure oscuranti | C19: ='SAL.30%'!K21/(1+D19) -> 0 | D19: 0.22 | E19: 0 | F19: 0
B20: Spese Tecniche x Schermature solari | C20: ='SAL.30%'!K22/(1+D20) -> 0 | D20: 0.22 | E20: 0 | F20: 0
B21: Spese Tecniche x Solare Termico - con collettori solari | C21: ='SAL.30%'!K23/(1+D21) -> 0 | D21: 0.22 | E21: 0 | F21: 0 | H21: Totali Sp.Tec | J21: =B2 -> STATO AVANZAMENTO LAVORI N.1 del 26/06/2021
B22: Spese Tecniche x Solare Fotovoltaico kWp | C22: ='SAL.30%'!K24/(1+D22) -> 0 | D22: 0.22 | E22: 0 | F22: 0 | H22: =SUM(F18:F30) +SUM(N7:N8) -> 0 | J22: Ripartizione Spese Tecniche | K22: Imponibile | L22: Aliq.Iva | M22: Iva | N22: Importo | Q22: Applica Sconto Diretto
B23: Spese Tecniche x Sistema di Accumulo kWh | C23: ='SAL.30%'!K25/(1+D23) -> 0 | D23: 0.22 | E23: 0 | F23: 0 | J23: ='Computo-Massimali'!S3 -> Ape Ante | K23: =$H$22*('Computo-Massimali'!$U$3+'Computo-Massimali'!$X$3)/'Computo-Massimali'!$AC$13 -> 0 | L23: ='Computo-Massimali'!$Z$3 -> 0.22 | M23: =L23*K23 -> 0 | N23: =M23+K23 -> 0 | Q23: NO | R23: =IF(Q23="SI",N23,0) -> 0
B24: Spese Tecniche x Impianti climatizzazione e ACS | C24: ='SAL.30%'!K26/(1+D24) -> 0 | D24: 0.22 | E24: 0 | F24: 0 | J24: ='Computo-Massimali'!S4 -> Progettazione e DL | K24: =$H$22*('Computo-Massimali'!$U$4+'Computo-Massimali'!$X$4)/'Computo-Massimali'!$AC$13 -> 0 | L24: ='Computo-Massimali'!$Z$4 -> 0.22 | M24: 0 | N24: 0 | Q24: NO | R24: =IF(Q24="SI",N24,0) -> 0
B25: Spese Tecniche x Sistemi di Microgenerazione | C25: ='SAL.30%'!K27/(1+D25) -> 0 | D25: 0.22 | E25: 0 | F25: 0 | J25: ='Computo-Massimali'!S5 -> Coord.SicurezzaEsec. | K25: =$H$22*('Computo-Massimali'!$U$5+'Computo-Massimali'!$X$5)/'Computo-Massimali'!$AC$13 -> 0 | L25: ='Computo-Massimali'!$Z$5 -> 0.22 | M25: 0 | N25: 0 | Q25: NO | R25: 0
B26: Spese Tecniche x Impianti Biomassa | C26: ='SAL.30%'!K28/(1+D26) -> 0 | D26: 0.22 | E26: 0 | F26: 0 | J26: ='Computo-Massimali'!S6 -> Ape Post | K26: =$H$22*('Computo-Massimali'!$U$6+'Computo-Massimali'!$X$6)/'Computo-Massimali'!$AC$13 -> 0 | L26: ='Computo-Massimali'!$Z$6 -> 0.22 | M26: 0 | N26: 0 | Q26: NO | R26: 0
B27: Spese Tecniche x Sistemi di Building Automation | C27: ='SAL.30%'!K29/(1+D27) -> 0 | D27: 0.22 | E27: 0 | F27: 0 | J27: ='Computo-Massimali'!S7 -> 0 | K27: =$H$22*('Computo-Massimali'!$U$7+'Computo-Massimali'!$X$7)/'Computo-Massimali'!$AC$13 -> 0 | L27: ='Computo-Massimali'!$Z$7 -> 0 | M27: 0 | N27: 0 | Q27: NO | R27: 0
B28: Spese Tecniche x Colonnine di Ricarica | C28: ='SAL.30%'!K30/(1+D28) -> 0 | D28: 0.22 | E28: 0 | F28: 0 | J28: ='Computo-Massimali'!S8 -> 0 | K28: =$H$22*('Computo-Massimali'!$U$8+'Computo-Massimali'!$X$8)/'Computo-Massimali'!$AC$13 -> 0 | L28: ='Computo-Massimali'!$Z$8 -> 0 | M28: 0 | N28: 0 | Q28: NO | R28: 0
B29: Spese Tecniche x Eliminazione Barriere architettoniche | C29: ='SAL.30%'!K31/(1+D29) -> 0 | D29: 0.22 | E29: 0 | F29: 0 | J29: ='Computo-Massimali'!S9 -> 0 | K29: =$H$22*('Computo-Massimali'!$U$9+'Computo-Massimali'!$X$9)/'Computo-Massimali'!$AC$13 -> 0 | L29: ='Computo-Massimali'!$Z$9 -> 0 | M29: 0 | N29: 0 | Q29: NO | R29: 0
B30: Spese Tecniche x SismaBonus | C30: ='SAL.30%'!K32/(1+D30) -> 0 | D30: 0.22 | E30: 0 | F30: 0 | J30: ='Computo-Massimali'!S12 -> Visto Conformità | K30: =$H$22*('Computo-Massimali'!$V$12+'Computo-Massimali'!$X$12)/'Computo-Massimali'!$AC$13 -> 0 | L30: ='Computo-Massimali'!$Z$12 -> 0.22 | M30: 0 | N30: 0 | Q30: NO | R30: 0
N31: =SUM(N23:N30) -> 0 | R31: =SUM(R23:R30) -> 0
E32: Totale Imponibile | F32: =SUM(C5:C30) -> 42928.34
E33: A detrarre Importi Direttamente fatturati da Tecnici che applicano sconto in fattura | F33: =-R31/(1+D18) -> 0
E34: Sommano | F34: =SUM(F32:F33) -> 42928.34
E35: Totale IVA | F35: =SUM(E5:E30)-R31*D18 -> 4292.834
E36: Totale Fattura | F36: =SUM(F5:F30)-R31 -> 47221.174
E37: Sconto in Fattura (Spese ammesse) | F37: =-(F36+SUM(H5:H17)) -> 
E38: Netto a Pagare | F38: =F36+F37 -> 
B52: =CONCATENATE('SAL.60%'!C3," del ",'SAL.60%'!C4) -> STATO AVANZAMENTO LAVORI N.2 del 26/07/2021 | J52: =B52 -> STATO AVANZAMENTO LAVORI N.2 del 26/07/2021
B53: FATTURA x SUPERBONUS 110% | J53: FATTURA x LAVORI RISTRUTTURAZIONE
B54: Descrizione | C54: Imponibile | D54: Aliq.Iva | E54: Iva | F54: Importo | H54: Ecced.Max Spesa | J54: Descrizione | K54: Imponibile | L54: Aliq.Iva | M54: Iva | N54: Importo
B55: ='SAL.60%'!C18 -> Isolamento sup. verticali e/o orizzontali | C55: =IF('SAL.60%'!H18>0,'SAL.60%'!H18-C5,0) -> 0 | D55: 0.1 | E55: =C55*D55 -> 0 | F55: =C55+E55 -> 0 | H55: =IF('SAL.60%'!L18>'SAL.60%'!Q18,'SAL.60%'!Q18-'SAL.60%'!L18,0) ->  | J55: ='SAL.60%'!C35 -> Lavori Ristrutturazione | K55: =IF('SAL.60%'!H35>0,'SAL.60%'!H35-K5,0) -> 0 | L55: 0.1 | M55: =K55*L55 -> 0 | N55: =K55+M55 -> 0
B56: ='SAL.60%'!C21 -> Serramenti + chiusure oscuranti | C56: =IF('SAL.60%'!H21>0,'SAL.60%'!H21-C6,0) -> 0 | D56: 0.1 | E56: =C56*D56 -> 0 | F56: =C56+E56 -> 0 | H56: =IF('SAL.60%'!L21>'SAL.60%'!Q21,'SAL.60%'!Q21-'SAL.60%'!L21,0) -> 0 | J56: ='SAL.60%'!C36 -> 0 | K56: =IF('SAL.60%'!H36>0,'SAL.60%'!H36-K6,0) -> 0 | L56: 0.1 | M56: =K56*L56 -> 0 | N56: =K56+M56 -> 0
B57: ='SAL.60%'!C22 -> Schermature solari | C57: =IF('SAL.60%'!H22>0,'SAL.60%'!H22-C7,0) -> 0 | D57: 0.1 | E57: =C57*D57 -> 0 | F57: =C57+E57 -> 0 | H57: =IF('SAL.60%'!L22>'SAL.60%'!Q22,'SAL.60%'!Q22-'SAL.60%'!L22,0) -> 0 | J57: =CONCATENATE("Spese Tecniche x ",J55) -> Spese Tecniche x Lavori Ristrutturazione | K57: =IF('SAL.60%'!K35>0,('SAL.60%'!K35-'SAL.30%'!K35)/(1+L57),0) -> 0 | L57: 0.22 | M57: =K57*L57 -> 0 | N57: =M57+K57 -> 0
B58: ='SAL.60%'!C23 -> Solare Termico - con collettori solari | C58: =IF('SAL.60%'!H23>0,'SAL.60%'!H23-C8,0) -> 0 | D58: 0.1 | E58: 0 | F58: 0 | H58: =IF('SAL.60%'!L23>'SAL.60%'!Q23,'SAL.60%'!Q23-'SAL.60%'!L23,0) -> 0 | J58: =CONCATENATE("Spese Tecniche x ",J56) -> Spese Tecniche x 0 | K58: =IF('SAL.60%'!K36>0,('SAL.60%'!K36-'SAL.30%'!K36)/(1+L58),0) -> 0 | L58: 0.22 | M58: =K58*L58 -> 0 | N58: =M58+K58 -> 0
B59: ='SAL.60%'!C24 -> Solare Fotovoltaico kWp | C59: =IF('SAL.60%'!H24>0,'SAL.60%'!H24-C9,0) -> 0 | D59: 0.1 | E59: 0 | F59: 0 | H59: =IF('SAL.60%'!L24>'SAL.60%'!Q24,'SAL.60%'!Q24-'SAL.60%'!L24,0) -> 0
B60: ='SAL.60%'!C25 -> Sistema di Accumulo kWp | C60: =IF('SAL.60%'!H25>0,'SAL.60%'!H25-C10,0) -> 0 | D60: 0.1 | E60: 0 | F60: 0 | H60: =IF('SAL.60%'!L25>'SAL.60%'!Q25,'SAL.60%'!Q25-'SAL.60%'!L25,0) -> 0 | M60: Oneri Attualizzazione Credito / Quota Sconto | N60: =IF('SAL.60%'!N37>0,('SAL.60%'!N37-'SAL.30%'!N37)*(1-'Computo-Massimali'!H44),0) -> 0
B61: ='SAL.60%'!C26 -> Impianti climatizzazione e ACS | C61: =IF('SAL.60%'!H26>0,'SAL.60%'!H26-C11,0) -> 0 | D61: 0.1 | E61: 0 | F61: 0 | H61: =IF('SAL.60%'!L26>'SAL.60%'!Q26,'SAL.60%'!Q26-'SAL.60%'!L26,0) -> 
B62: ='SAL.60%'!C27 -> Sistemi di Microgenerazione | C62: =IF('SAL.60%'!H27>0,'SAL.60%'!H27-C12,0) -> 0 | D62: 0.1 | E62: 0 | F62: 0 | H62: =IF('SAL.60%'!L27>'SAL.60%'!Q27,'SAL.60%'!Q27-'SAL.60%'!L27,0) -> 0 | M62: Totale Imponibile | N62: =SUM(K55:K58) -> 0
B63: ='SAL.60%'!C28 -> Impianti Biomassa | C63: =IF('SAL.60%'!H28>0,'SAL.60%'!H28-C13,0) -> 0 | D63: 0.1 | E63: 0 | F63: 0 | H63: =IF('SAL.60%'!L28>'SAL.60%'!Q28,'SAL.60%'!Q28-'SAL.60%'!L28,0) -> 0 | M63: Totale IVA | N63: =SUM(M55:M58) -> 0
B64: ='SAL.60%'!C29 -> Sistemi di Building Automation | C64: =IF('SAL.60%'!H29>0,'SAL.60%'!H29-C14,0) -> 0 | D64: 0.1 | E64: 0 | F64: 0 | H64: =IF('SAL.60%'!L29>'SAL.60%'!Q29,'SAL.60%'!Q29-'SAL.60%'!L29,0) -> 0 | M64: Totale Fattura | N64: =SUM(N55:N58) -> 0
B65: ='SAL.60%'!C30 -> Colonnine di Ricarica | C65: =IF('SAL.60%'!H30>0,'SAL.60%'!H30-C15,0) -> 0 | D65: 0.1 | E65: 0 | F65: 0 | H65: =IF('SAL.60%'!L30>'SAL.60%'!Q30,'SAL.60%'!Q30-'SAL.60%'!L30,0) -> 0 | M65: Sconto in Fattura | N65: =-'SAL.60%'!N37+N60 -> 0
B66: ='SAL.60%'!C31 -> Eliminazione Barriere architettoniche | C66: =IF('SAL.60%'!H31>0,'SAL.60%'!H31-C16,0) -> 0 | D66: 0.1 | E66: 0 | F66: 0 | H66: =IF('SAL.60%'!L31>'SAL.60%'!Q31,'SAL.60%'!Q31-'SAL.60%'!L31,0) -> 0 | M66: Netto a Pagare | N66: =N64+N65 -> 0
B67: ='SAL.60%'!C32 -> SismaBonus | C67: =IF('SAL.60%'!H32>0,'SAL.60%'!H32-C17,0) -> 0 | D67: 0.1 | E67: 0 | F67: 0 | H67: =IF('SAL.60%'!L32>'SAL.60%'!Q32,'SAL.60%'!Q32-'SAL.60%'!L32,0) -> 0
B68: =CONCATENATE("Spese Tecniche x ",B55) -> Spese Tecniche x Isolamento sup. verticali e/o orizzontali | C68: =IF('SAL.60%'!K18>0,('SAL.60%'!K18-'SAL.30%'!K18)/(1+D68),0) -> 0 | D68: 0.22 | E68: 0 | F68: =E68+C68 -> 0
B69: Spese Tecniche x Serramenti + chiusure oscuranti | C69: =IF('SAL.60%'!K21>0,('SAL.60%'!K21-'SAL.30%'!K21)/(1+D69),0) -> 0 | D69: 0.22 | E69: 0 | F69: 0
B70: Spese Tecniche x Schermature solari | C70: =IF('SAL.60%'!K22>0,('SAL.60%'!K22-'SAL.30%'!K22)/(1+D70),0) -> 0 | D70: 0.22 | E70: 0 | F70: 0
B71: Spese Tecniche x Solare Termico - con collettori solari | C71: =IF('SAL.60%'!K23>0,('SAL.60%'!K23-'SAL.30%'!K23)/(1+D71),0) -> 0 | D71: 0.22 | E71: 0 | F71: 0 | H71: Totali Sp.Tec | J71: =B52 -> STATO AVANZAMENTO LAVORI N.2 del 26/07/2021
B72: Spese Tecniche x Solare Fotovoltaico kWp | C72: =IF('SAL.60%'!K24>0,('SAL.60%'!K24-'SAL.30%'!K24)/(1+D72),0) -> 0 | D72: 0.22 | E72: 0 | F72: 0 | H72: =SUM(F68:F80) +SUM(N57:N58) -> 0 | J72: Ripartizione Spese Tecniche | K72: Imponibile | L72: Aliq.Iva | M72: Iva | N72: Importo | Q72: Applica Sconto Diretto
B73: Spese Tecniche x Sistema di Accumulo kWp | C73: =IF('SAL.60%'!K25>0,('SAL.60%'!K25-'SAL.30%'!K25)/(1+D73),0) -> 0 | D73: 0.22 | E73: 0 | F73: 0 | J73: =J23 -> Ape Ante | K73: =$H$72*('Computo-Massimali'!$U$3+'Computo-Massimali'!$X$3)/'Computo-Massimali'!$AC$13 -> 0 | L73: ='Computo-Massimali'!$Z$3 -> 0.22 | M73: =L73*K73 -> 0 | N73: =M73+K73 -> 0 | Q73: NO | R73: =IF(Q73="SI",N73,0) -> 0
B74: Spese Tecniche x Impianti climatizzazione e ACS | C74: =IF('SAL.60%'!K26>0,('SAL.60%'!K26-'SAL.30%'!K26)/(1+D74),0) -> 0 | D74: 0.22 | E74: 0 | F74: 0 | J74: =J24 -> Progettazione e DL | K74: =$H$72*('Computo-Massimali'!$U$4+'Computo-Massimali'!$X$4)/'Computo-Massimali'!$AC$13 -> 0 | L74: ='Computo-Massimali'!$Z$4 -> 0.22 | M74: 0 | N74: 0 | Q74: NO | R74: =IF(Q74="SI",N74,0) -> 0
B75: Spese Tecniche x Sistemi di Microgenerazione | C75: =IF('SAL.60%'!K27>0,('SAL.60%'!K27-'SAL.30%'!K27)/(1+D75),0) -> 0 | D75: 0.22 | E75: 0 | F75: 0 | J75: =J25 -> Coord.SicurezzaEsec. | K75: =$H$72*('Computo-Massimali'!$U$5+'Computo-Massimali'!$X$5)/'Computo-Massimali'!$AC$13 -> 0 | L75: ='Computo-Massimali'!$Z$5 -> 0.22 | M75: 0 | N75: 0 | Q75: NO | R75: 0
B76: Spese Tecniche x Impianti Biomassa | C76: =IF('SAL.60%'!K28>0,('SAL.60%'!K28-'SAL.30%'!K28)/(1+D76),0) -> 0 | D76: 0.22 | E76: 0 | F76: 0 | J76: Ape Post | K76: =$H$72*('Computo-Massimali'!$U$7+'Computo-Massimali'!$X$6)/'Computo-Massimali'!$AC$13 -> 0 | L76: ='Computo-Massimali'!$Z$6 -> 0.22 | M76: 0 | N76: 0 | Q76: NO | R76: 0
B77: Spese Tecniche x Sistemi di Building Automation | C77: =IF('SAL.60%'!K29>0,('SAL.60%'!K29-'SAL.30%'!K29)/(1+D77),0) -> 0 | D77: 0.22 | E77: 0 | F77: 0 | J77: 0 | K77: =$H$72*('Computo-Massimali'!$U$7+'Computo-Massimali'!$X$6)/'Computo-Massimali'!$AC$13 -> 0 | L77: ='Computo-Massimali'!$Z$7 -> 0 | M77: 0 | N77: 0 | Q77: NO | R77: 0
B78: Spese Tecniche x Colonnine di Ricarica | C78: =IF('SAL.60%'!K30>0,('SAL.60%'!K30-'SAL.30%'!K30)/(1+D78),0) -> 0 | D78: 0.22 | E78: 0 | F78: 0 | J78: 0 | K78: =$H$72*('Computo-Massimali'!$U$8+'Computo-Massimali'!$X$8)/'Computo-Massimali'!$AC$13 -> 0 | L78: ='Computo-Massimali'!$Z$8 -> 0 | M78: 0 | N78: 0 | Q78: NO | R78: 0
B79: Spese Tecniche x Eliminazione Barriere architettoniche | C79: =IF('SAL.60%'!K31>0,('SAL.60%'!K31-'SAL.30%'!K31)/(1+D79),0) -> 0 | D79: 0.22 | E79: 0 | F79: 0 | J79: 0 | K79: =$H$72*('Computo-Massimali'!$U$9+'Computo-Massimali'!$X$9)/'Computo-Massimali'!$AC$13 -> 0 | L79: ='Computo-Massimali'!$Z$9 -> 0 | M79: 0 | N79: 0 | Q79: NO | R79: 0
B80: Spese Tecniche x SismaBonus | C80: =IF('SAL.60%'!K32>0,('SAL.60%'!K32-'SAL.30%'!K32)/(1+D80),0) -> 0 | D80: 0.22 | E80: 0 | F80: 0 | J80: =J30 -> Visto Conformità | K80: =$H$72*('Computo-Massimali'!$V$12+'Computo-Massimali'!$X$12)/'Computo-Massimali'!$AC$13 -> 0 | L80: ='Computo-Massimali'!$Z$12 -> 0.22 | M80: 0 | N80: 0 | Q80: NO | R80: 0
N81: =SUM(N73:N80) -> 0 | R81: =SUM(R73:R80) -> 0
E82: Totale Imponibile | F82: =SUM(C55:C80) -> 0
E83: A detrarre Importi Direttamente fatturati da Tecnici che applicano sconto in fattura | F83: =-R81/(1+D68) -> 0
E84: Sommano | F84: =SUM(F82:F83) -> 0
E85: Totale IVA | F85: =SUM(E55:E80)-R81*D68 -> 0
E86: Totale Fattura | F86: =SUM(F55:F80)-R81 -> 0
E87: Sconto in Fattura (Spese ammesse) | F87: =-(F86+SUM(H55:H67)) -> 
E88: Netto a Pagare | F88: =F86+F87 -> 
B102: =CONCATENATE(SAL.Finale!C3," del ",SAL.Finale!C4) -> STATO AVANZAMENTO LAVORI Finale del 29/07/2021 | J102: =B102 -> STATO AVANZAMENTO LAVORI Finale del 29/07/2021
B103: FATTURA x SUPERBONUS 110% | J103: FATTURA x LAVORI RISTRUTTURAZIONE
B104: Descrizione | C104: Imponibile | D104: Aliq.Iva | E104: Iva | F104: Importo | H104: Ecced.Max Spesa | J104: Descrizione | K104: Imponibile | L104: Aliq.Iva | M104: Iva | N104: Importo
B105: =SAL.Finale!C18 -> Isolamento sup. verticali e/o orizzontali | C105: =IF(SAL.Finale!H18>0,SAL.Finale!H18-C55-C5,0) -> 0 | D105: 0.1 | E105: =C105*D105 -> 0 | F105: =C105+E105 -> 0 | H105: =IF(SAL.Finale!L18>SAL.Finale!Q18,SAL.Finale!Q18-SAL.Finale!L18,0) ->  | J105: =SAL.Finale!C35 -> Lavori Ristrutturazione | K105: =IF(SAL.Finale!H35>0,SAL.Finale!H35-K55-K5,0) -> 0 | L105: 0.1 | M105: =K105*L105 -> 0 | N105: =K105+M105 -> 0
B106: =SAL.Finale!C21 -> Serramenti + chiusure oscuranti | C106: =IF(SAL.Finale!H21>0,SAL.Finale!H21-C56-C6,0) -> 0 | D106: 0.1 | E106: =C106*D106 -> 0 | F106: =C106+E106 -> 0 | H106: =IF(SAL.Finale!L21>SAL.Finale!Q21,SAL.Finale!Q21-SAL.Finale!L21,0) -> 0 | J106: =SAL.Finale!C36 -> 0 | K106: =IF(SAL.Finale!H86>0,SAL.Finale!H86-K56-K6,0) -> 0 | L106: 0.1 | M106: =K106*L106 -> 0 | N106: =K106+M106 -> 0
B107: =SAL.Finale!C22 -> Schermature solari | C107: =IF(SAL.Finale!H22>0,SAL.Finale!H22-C57-C7,0) -> 0 | D107: 0.1 | E107: =C107*D107 -> 0 | F107: =C107+E107 -> 0 | H107: =IF(SAL.Finale!L22>SAL.Finale!Q22,SAL.Finale!Q22-SAL.Finale!L22,0) -> 0 | J107: =CONCATENATE("Spese Tecniche x ",J105) -> Spese Tecniche x Lavori Ristrutturazione | K107: =IF(SAL.Finale!K35>0,(SAL.Finale!K35-'SAL.60%'!K35-'SAL.30%'!K35)/(1+L107),0) -> 0 | L107: 0.22 | M107: =K107*L107 -> 0 | N107: =M107+K107 -> 0
B108: =SAL.Finale!C23 -> Solare Termico - con collettori solari | C108: =IF(SAL.Finale!H23>0,SAL.Finale!H23-C58-C8,0) -> 0 | D108: 0.1 | E108: 0 | F108: 0 | H108: =IF(SAL.Finale!L23>SAL.Finale!Q23,SAL.Finale!Q23-SAL.Finale!L23,0) -> 0 | J108: =CONCATENATE("Spese Tecniche x ",J106) -> Spese Tecniche x 0 | K108: =IF(SAL.Finale!K36>0,(SAL.Finale!K36-'SAL.60%'!K36-'SAL.30%'!K36)/(1+L108),0) -> 0 | L108: 0.22 | M108: =K108*L108 -> 0 | N108: =M108+K108 -> 0
B109: =SAL.Finale!C24 -> Solare Fotovoltaico kWp | C109: =IF(SAL.Finale!H24>0,SAL.Finale!H24-C59-C9,0) -> 0 | D109: 0.1 | E109: 0 | F109: 0 | H109: =IF(SAL.Finale!L24>SAL.Finale!Q24,SAL.Finale!Q24-SAL.Finale!L24,0) -> 0
B110: =SAL.Finale!C25 -> Sistema di Accumulo kWp | C110: =IF(SAL.Finale!H25>0,SAL.Finale!H25-C60-C10,0) -> 0 | D110: 0.1 | E110: 0 | F110: 0 | H110: =IF(SAL.Finale!L25>SAL.Finale!Q25,SAL.Finale!Q25-SAL.Finale!L25,0) -> 0 | M110: Oneri Attualizzazione Credito / Quota Sconto | N110: =IF(SAL.Finale!N37>0,(SAL.Finale!N37-'SAL.60%'!N37-'SAL.30%'!N37)*(1-'Computo-Massimali'!H44),0) -> 0
B111: =SAL.Finale!C26 -> Impianti climatizzazione e ACS | C111: =IF(SAL.Finale!H26>0,SAL.Finale!H26-C61-C11,0) -> 0 | D111: 0.1 | E111: 0 | F111: 0 | H111: =IF(SAL.Finale!L26>SAL.Finale!Q26,SAL.Finale!Q26-SAL.Finale!L26,0) -> 
B112: =SAL.Finale!C27 -> Sistemi di Microgenerazione | C112: =IF(SAL.Finale!H27>0,SAL.Finale!H27-C62-C12,0) -> 0 | D112: 0.1 | E112: 0 | F112: 0 | H112: =IF(SAL.Finale!L27>SAL.Finale!Q27,SAL.Finale!Q27-SAL.Finale!L27,0) -> 0 | M112: Totale Imponibile | N112: =SUM(K105:K108) -> 0
B113: =SAL.Finale!C28 -> Impianti Biomassa | C113: =IF(SAL.Finale!H28>0,SAL.Finale!H28-C63-C13,0) -> 0 | D113: 0.1 | E113: 0 | F113: 0 | H113: =IF(SAL.Finale!L28>SAL.Finale!Q28,SAL.Finale!Q28-SAL.Finale!L28,0) -> 0 | M113: Totale IVA | N113: =SUM(M105:M108) -> 0
B114: =SAL.Finale!C29 -> Sistemi di Building Automation | C114: =IF(SAL.Finale!H29>0,SAL.Finale!H29-C64-C14,0) -> 0 | D114: 0.1 | E114: 0 | F114: 0 | H114: =IF(SAL.Finale!L29>SAL.Finale!Q29,SAL.Finale!Q29-SAL.Finale!L29,0) -> 0 | M114: Totale Fattura | N114: =SUM(N105:N108) -> 0
B115: =SAL.Finale!C30 -> Colonnine di Ricarica | C115: =IF(SAL.Finale!H30>0,SAL.Finale!H30-C65-C15,0) -> 0 | D115: 0.1 | E115: 0 | F115: 0 | H115: =IF(SAL.Finale!L30>SAL.Finale!Q30,SAL.Finale!Q30-SAL.Finale!L30,0) -> 0 | M115: Sconto in Fattura | N115: =-SAL.Finale!N37+N110 -> 0
B116: =SAL.Finale!C31 -> Eliminazione Barriere architettoniche | C116: =IF(SAL.Finale!H31>0,SAL.Finale!H31-C66-C16,0) -> 100000 | D116: 0.1 | E116: 10000 | F116: 110000 | H116: =IF(SAL.Finale!L31>SAL.Finale!Q31,SAL.Finale!Q31-SAL.Finale!L31,0) -> -118239.8956 | M116: Netto a Pagare | N116: =N114+N115 -> 0
B117: =SAL.Finale!C32 -> SismaBonus | C117: =IF(SAL.Finale!H32>0,SAL.Finale!H32-C67-C17,0) -> 0 | D117: 0.1 | E117: 0 | F117: 0 | H117: =IF(SAL.Finale!L32>SAL.Finale!Q32,SAL.Finale!Q32-SAL.Finale!L32,0) -> 0
B118: =CONCATENATE("Spese Tecniche x ",B105) -> Spese Tecniche x Isolamento sup. verticali e/o orizzontali | C118: =IF(SAL.Finale!K18>0,(SAL.Finale!K18-'SAL.60%'!K18-'SAL.30%'!K18)/(1+D118),0) -> 0 | D118: 0.22 | E118: 0 | F118: =E118+C118 -> 0 | J118: =IF(ABS(N118-'Computo-Massimali'!L38)>0.01,"ERR. Totale Fatture Ristrutturazioni <> Importo Progetto","Totale Fatture Ristrutturazioni ") -> ERR. Totale Fatture Ristrutturazioni <> Importo Progetto | N118: =N114+N64+N14 -> 3998.951
B119: Spese Tecniche x Serramenti + chiusure oscuranti | C119: =IF(SAL.Finale!K21>0,(SAL.Finale!K21-'SAL.60%'!K21-'SAL.30%'!K21)/(1+D119),0) -> 0 | D119: 0.22 | E119: 0 | F119: =E119+C119 -> 0
B120: Spese Tecniche x Schermature solari | C120: =IF(SAL.Finale!K22>0,(SAL.Finale!K22-'SAL.60%'!K22-'SAL.30%'!K22)/(1+D120),0) -> 0 | D120: 0.22 | E120: 0 | F120: 0
B121: Spese Tecniche x Solare Termico - con collettori solari | C121: =IF(SAL.Finale!K23>0,(SAL.Finale!K23-'SAL.60%'!K23-'SAL.30%'!K23)/(1+D121),0) -> 0 | D121: 0.22 | E121: 0 | F121: 0 | H121: Totali Sp.Tec | J121: =B102 -> STATO AVANZAMENTO LAVORI Finale del 29/07/2021
B122: Spese Tecniche x Solare Fotovoltaico kWp | C122: =IF(SAL.Finale!K24>0,(SAL.Finale!K24-'SAL.60%'!K24-'SAL.30%'!K24)/(1+D122),0) -> 0 | D122: 0.22 | E122: 0 | F122: 0 | H122: =SUM(F118:F130) +SUM(N107:N108) -> 8239.895563 | J122: Ripartizione Spese Tecniche | K122: Imponibile | L122: Aliq.Iva | M122: Iva | N122: Importo | Q122: Applica Sconto Diretto
B123: Spese Tecniche x Sistema di Accumulo kWp | C123: =IF(SAL.Finale!K25>0,(SAL.Finale!K25-'SAL.60%'!K25-'SAL.30%'!K25)/(1+D123),0) -> 0 | D123: 0.22 | E123: 0 | F123: 0 | J123: =J23 -> Ape Ante | K123: =$H$122*('Computo-Massimali'!$U$3+'Computo-Massimali'!$X$3)/'Computo-Massimali'!$AC$13 -> 172.3478057 | L123: ='Computo-Massimali'!$Z$3 -> 0.22 | M123: =L123*K123 -> 37.91651724 | N123: =M123+K123 -> 210.2643229 | Q123: NO | R123: =IF(Q123="SI",N123,0) -> 0
B124: Spese Tecniche x Impianti climatizzazione e ACS | C124: =IF(SAL.Finale!K26>0,(SAL.Finale!K26-'SAL.60%'!K26-'SAL.30%'!K26)/(1+D124),0) -> 0 | D124: 0.22 | E124: 0 | F124: 0 | J124: =J24 -> Progettazione e DL | K124: =$H$122*('Computo-Massimali'!$U$4+'Computo-Massimali'!$X$4)/'Computo-Massimali'!$AC$13 -> 4459.645524 | L124: ='Computo-Massimali'!$Z$4 -> 0.22 | M124: 981.1220153 | N124: 5440.767539 | Q124: NO | R124: =IF(Q124="SI",N124,0) -> 0
B125: Spese Tecniche x Sistemi di Microgenerazione | C125: =IF(SAL.Finale!K27>0,(SAL.Finale!K27-'SAL.60%'!K27-'SAL.30%'!K27)/(1+D125),0) -> 0 | D125: 0.22 | E125: 0 | F125: 0 | J125: =J25 -> Coord.SicurezzaEsec. | K125: =$H$122*('Computo-Massimali'!$U$5+'Computo-Massimali'!$X$5)/'Computo-Massimali'!$AC$13 -> 860.7169269 | L125: ='Computo-Massimali'!$Z$5 -> 0.22 | M125: 189.3577239 | N125: 1050.074651 | Q125: NO | R125: 0
B126: Spese Tecniche x Impianti Biomassa | C126: =IF(SAL.Finale!K28>0,(SAL.Finale!K28-'SAL.60%'!K28-'SAL.30%'!K28)/(1+D126),0) -> 0 | D126: 0.22 | E126: 0 | F126: 0 | J126: Ape Post | K126: =$H$122*('Computo-Massimali'!$U$6+'Computo-Massimali'!$X$6)/'Computo-Massimali'!$AC$13 -> 221.3010809 | L126: ='Computo-Massimali'!$Z$6 -> 0.22 | M126: 48.68623779 | N126: 269.9873187 | Q126: NO | R126: 0
B127: Spese Tecniche x Sistemi di Building Automation | C127: =IF(SAL.Finale!K29>0,(SAL.Finale!K29-'SAL.60%'!K29-'SAL.30%'!K29)/(1+D127),0) -> 0 | D127: 0.22 | E127: 0 | F127: 0 | J127: 0 | K127: =$H$122*('Computo-Massimali'!$U$7+'Computo-Massimali'!$X$7)/'Computo-Massimali'!$AC$13 -> 0 | L127: ='Computo-Massimali'!$Z$7 -> 0 | M127: 0 | N127: 0 | Q127: NO | R127: 0
B128: Spese Tecniche x Colonnine di Ricarica | C128: =IF(SAL.Finale!K30>0,(SAL.Finale!K30-'SAL.60%'!K30-'SAL.30%'!K30)/(1+D128),0) -> 0 | D128: 0.22 | E128: 0 | F128: 0 | J128: 0 | K128: =$H$122*('Computo-Massimali'!$U$8+'Computo-Massimali'!$X$8)/'Computo-Massimali'!$AC$13 -> 0 | L128: ='Computo-Massimali'!$Z$8 -> 0 | M128: 0 | N128: 0 | Q128: NO | R128: 0
B129: Spese Tecniche x Eliminazione Barriere architettoniche | C129: =IF(SAL.Finale!K31>0,(SAL.Finale!K31-'SAL.60%'!K31-'SAL.30%'!K31)/(1+D129),0) -> 6754.012757 | D129: 0.22 | E129: 1485.882806 | F129: 8239.895563 | J129: 0 | K129: =$H$122*('Computo-Massimali'!$U$9+'Computo-Massimali'!$X$9)/'Computo-Massimali'!$AC$13 -> 0 | L129: ='Computo-Massimali'!$Z$9 -> 0 | M129: 0 | N129: 0 | Q129: NO | R129: 0
B130: Spese Tecniche x SismaBonus | C130: =IF(SAL.Finale!K32>0,(SAL.Finale!K32-'SAL.60%'!K32-'SAL.30%'!K32)/(1+D130),0) -> 0 | D130: 0.22 | E130: 0 | F130: 0 | J130: Visto Conformità | K130: =$H$122*('Computo-Massimali'!$V$12+'Computo-Massimali'!$X$12)/'Computo-Massimali'!$AC$13 -> 1039.999948 | L130: ='Computo-Massimali'!$Z$12 -> 0.22 | M130: 228.7999886 | N130: 1268.799937 | Q130: NO | R130: 0
N131: =SUM(N123:N130) -> 8239.893769 | R131: =SUM(R123:R130) -> 0
E132: Totale Imponibile | F132: =SUM(C105:C130) -> 106754.0128
E133: A detrarre Importi Direttamente fatturati da Tecnici che applicano sconto in fattura | F133: =-R131/(1+D118) -> 0 | J133: =IF(ABS(N133-'Computo-Massimali'!I10)>0.01,"ERR. Totale Fatture Spese Tecniche <> Importo Progetto","Totale Fatture Spese Tecniche") -> ERR. Totale Fatture Spese Tecniche <> Importo Progetto | N133: =N131+N81+N31 -> 8239.893769
E134: Sommano | F134: =SUM(F132:F133) -> 106754.0128
E135: Totale IVA | F135: =SUM(E105:E130)-R131*D118 -> 11485.88281
E136: Totale Fattura | F136: =SUM(F105:F130)-R131 -> 118239.8956
E137: Sconto in Fattura (Spese ammesse) | F137: =-(F136+SUM(H105:H117)) -> 
E138: Netto a Pagare | F138: =F136+F137 -> 
B141: =IF(ABS(F141-'Computo-Massimali'!L34)>0.01,"ERR. Totali Fatture Superbonus 110 <> Importo Progetto","Totali Fatture Superbonus 110") -> ERR. Totali Fatture Superbonus 110 <> Importo Progetto | F141: =F136+R131+F86+R81+F36+R31 -> 165461.0696
